{"text_format":"1","workbook":"xlsx","n_sheets":10,"sheets":["Relació de despeses 1","Relació d'ingressos 1 ","Resum despeses-ingressos 1","Relació de despeses 2","Relació d'ingressos 2","Resum despeses-ingressos 2","Relació de despeses 3","Relació d'ingressos 3","Resum despeses-ingressos 3","Resum despeses-ingressos Total"],"not_rendered":{"charts":0,"images":1,"macros":1,"external_links":0,"defined_names":15,"comments":10,"pivot_tables":0},"unopened":[],"bounds":{"document_bytes":16777216,"sheet_cells":100000,"rows_first":2000,"rows_last":500,"rows_between":2000,"halvings":0,"cell_chars":16384,"cell_head_chars":4096},"cells_cut":0,"cells_raw":0,"read":"whole","date_system":"1900"}

{"sheet":"Relació de despeses 1","index":0,"n_rows":110,"n_cols":13,"rows_kept":110,"cut":false,"hidden":false,"merged":[[0,0,0,13],[4,0,4,1],[28,0,28,7],[10,12,10,13],[2,0,2,1],[51,12,51,13],[50,12,50,13],[49,12,49,13],[48,12,48,13],[47,12,47,13],[7,2,8,2],[11,12,11,13],[2,10,2,11],[3,10,3,11],[4,10,4,11],[12,12,12,13],[2,2,2,4],[3,2,3,4],[4,2,4,4],[56,12,56,13],[55,12,55,13],[54,12,54,13],[38,0,38,13],[45,0,45,13],[15,12,15,13],[14,12,14,13],[13,12,13,13],[28,12,28,13],[46,12,46,13],[44,12,44,13],[43,12,43,13],[42,12,42,13],[41,12,41,13],[40,12,40,13],[16,12,16,13],[18,12,18,13],[19,12,19,13],[20,12,20,13],[21,12,21,13],[22,12,22,13],[23,12,23,13],[24,12,24,13],[35,12,35,13],[101,5,101,13],[94,0,94,7],[37,0,37,7],[44,0,44,7],[29,0,29,13],[37,12,37,13],[36,12,36,13],[34,12,34,13],[33,12,33,13],[32,12,32,13],[95,12,95,13],[95,0,95,5],[82,12,82,13],[81,12,81,13],[78,12,78,13],[77,12,77,13],[72,12,72,13],[71,12,71,13],[86,12,86,13],[87,12,87,13],[52,0,52,13],[51,0,51,7],[39,12,39,13],[80,12,80,13],[104,0,104,13],[3,0,3,1],[7,1,8,1],[7,0,8,0],[6,0,6,4],[94,12,94,13],[69,12,69,13],[84,12,84,13],[83,12,83,13],[70,12,70,13],[53,12,53,13],[67,12,67,13],[66,12,66,13],[63,12,63,13],[62,12,62,13],[61,12,61,13],[60,12,60,13],[58,12,58,13],[57,12,57,13],[97,0,97,13],[98,0,98,13],[88,12,88,13],[89,12,89,13],[101,1,101,3],[91,12,91,13],[92,12,92,13],[93,12,93,13],[109,0,109,13],[108,0,108,13],[7,12,7,13],[8,12,8,13],[9,0,9,13],[27,12,27,13],[79,0,79,13],[84,0,84,7],[78,0,78,7],[67,0,67,7],[59,0,59,13],[31,12,31,13],[30,12,30,13],[7,3,7,4],[90,0,90,13],[85,0,85,13],[89,0,89,7],[68,0,68,13],[58,0,58,7],[106,0,106,13],[107,0,107,13]]}
["Relació classificada de totes les despeses realitzades per a l'execució de l'activitat  subvencionada"]
[]
["Nom de l'entitat beneficiària 1:         ",null,null,null,null,null,null,null,null,"Import total del projecte entitat líder 1:",null,null,"euros"]
["Codi de subvenció:",null,null,null,null,null,null,null,null,"Import de la subvenció atorgada entitat líder 1:",null,null,"euros"]
["Nom del projecte subvencionat:",null,null,null,null,null,null,null,null,"Període d'execució del projecte subvencionat:",null,null,"a"]
[]
["Despeses del projecte/activitat/servei subvencionat (*)"]
["núm. d'ordre (0)","Número de document: justificants despesa personal (1), factura o rebut/tiquet(2)","Concepte de la factura / \ndocument probatori equivalent","Emissor de la factura",null,"Data d'emissió","Data de pagament de la factura","Import total de la factura","Percentatge d'iva deduït o el de després d'aplicar la Prorrata","Import després de deduïr l'IVA corresponent","Import imputable (dedicat) al projecte (3)","Import imputable a la subvenció municipal (4)","Observacions"]
[null,null,null,"NIF","Nom","dd/mm/aaaa","dd/mm/aaaa","euros","%","euros","euros","euros","(2)"]
["A. Recursos Humans. Despeses de personal (retribucions brutes i Seguretat Social del personal fix o eventual contractat)"]
[{"$f":"IF(B12<>\"\",1,\"\")","v":""},null,null,null,null,null,null,null,null,{"$f":"H11/(1+(I11))","v":0}]
[null,null,null,null,null,null,null,null,null,{"$f":"H12/(1+(I12))","v":0}]
[{"$f":"IF(B13<>\"\",MAX($A$11:A12)+1,\"\")","v":""},null,null,null,null,null,null,null,null,{"$f":"H13/(1+(I13))","v":0}]
[{"$f":"IF(B14<>\"\",MAX($A$11:A13)+1,\"\")","v":""},null,null,null,null,null,null,null,null,{"$f":"H14/(1+(I14))","v":0}]
[{"$f":"IF(B15<>\"\",MAX($A$11:A14)+1,\"\")","v":""},null,null,null,null,null,null,null,null,{"$f":"H15/(1+(I15))","v":0}]
[{"$f":"IF(B16<>\"\",MAX($A$11:A15)+1,\"\")","v":""},null,null,null,null,null,null,null,null,0]
[{"$f":"IF(B17<>\"\",MAX($A$11:A16)+1,\"\")","v":""},null,null,null,null,null,null,null,null,0]
[{"$f":"IF(B18<>\"\",MAX($A$11:A17)+1,\"\")","v":""},null,null,null,null,null,null,null,null,0]
[{"$f":"IF(B19<>\"\",MAX($A$11:A18)+1,\"\")","v":""},null,null,null,null,null,null,null,null,0]
[{"$f":"IF(B20<>\"\",MAX($A$11:A19)+1,\"\")","v":""},null,null,null,null,null,null,null,null,0]
[{"$f":"IF(B21<>\"\",MAX($A$11:A20)+1,\"\")","v":""},null,null,null,null,null,null,null,null,0]
[{"$f":"IF(B22<>\"\",MAX($A$11:A21)+1,\"\")","v":""},null,null,null,null,null,null,null,null,0]
[{"$f":"IF(B23<>\"\",MAX($A$11:A22)+1,\"\")","v":""},null,null,null,null,null,null,null,null,0]
[{"$f":"IF(B24<>\"\",MAX($A$11:A23)+1,\"\")","v":""},null,null,null,null,null,null,null,null,0]
[{"$f":"IF(B25<>\"\",MAX($A$11:A24)+1,\"\")","v":""},null,null,null,null,null,null,null,null,0]
[{"$f":"IF(B26<>\"\",MAX($A$11:A25)+1,\"\")","v":""},null,null,null,null,null,null,null,null,0]
[{"$f":"IF(B27<>\"\",MAX($A$11:A26)+1,\"\")","v":""},null,null,null,null,null,null,null,null,0]
[{"$f":"IF(B28<>\"\",MAX($A$11:A27)+1,\"\")","v":""},null,null,null,null,null,null,null,null,0]
[null,null,null,null,null,null,null,null,null,"Subtotal A",{"$f":"SUM(K11:K28)","v":0},{"$f":"SUM(L11:L28)","v":0}]
["B. Despeses derivades de la difusió, promoció, publicitat del projecte i dels resultats"]
[{"$f":"IF(B31<>\"\",MAX($A$11:A30)+1,\"\")","v":""},null,null,null,null,null,null,null,null,{"$f":"H31/(1+(I31))","v":0}]
[{"$f":"IF(B32<>\"\",MAX($A$30:A31)+1,\"\")","v":""},null,null,null,null,null,null,null,null,{"$f":"H32/(1+(I32))","v":0}]
[{"$f":"IF(B33<>\"\",MAX($A$30:A32)+1,\"\")","v":""},null,null,null,null,null,null,null,null,0]
[{"$f":"IF(B34<>\"\",MAX($A$30:A33)+1,\"\")","v":""},null,null,null,null,null,null,null,null,0]
[{"$f":"IF(B35<>\"\",MAX($A$30:A34)+1,\"\")","v":""},null,null,null,null,null,null,null,null,0]
[{"$f":"IF(B36<>\"\",MAX($A$30:A35)+1,\"\")","v":""},null,null,null,null,null,null,null,null,0]
[{"$f":"IF(B37<>\"\",MAX($A$30:A36)+1,\"\")","v":""},null,null,null,null,null,null,null,null,0]
[null,null,null,null,null,null,null,null,null,"Subtotal B",{"$f":"SUM(K31:K37)","v":0},{"$f":"SUM(L31:L37)","v":0}]
["C. Despeses de publicacions en format Open Access"]
[{"$f":"IF(B40<>\"\",MAX($A$11:A39)+1,\"\")","v":""},null,null,null,null,null,null,null,null,{"$f":"H40/(1+(I40))","v":0}]
[{"$f":"IF(B41<>\"\",MAX($A$30:A40)+1,\"\")","v":""},null,null,null,null,null,null,null,null,{"$f":"H41/(1+(I41))","v":0}]
[{"$f":"IF(B42<>\"\",MAX($A$30:A41)+1,\"\")","v":""},null,null,null,null,null,null,null,null,0]
[{"$f":"IF(B43<>\"\",MAX($A$30:A42)+1,\"\")","v":""},null,null,null,null,null,null,null,null,0]
[{"$f":"IF(B44<>\"\",MAX($A$30:A43)+1,\"\")","v":""},null,null,null,null,null,null,null,null,0]
[null,null,null,null,null,null,null,null,null,"Subtotal C",{"$f":"SUM(K40:K44)","v":0},{"$f":"SUM(L40:L44)","v":0}]
["D. Despeses de viatges, allotjament i manutenció (2)"]
[{"$f":"IF(B47<>\"\",MAX($A$11:A46)+1,\"\")","v":""},null,null,null,null,null,null,null,null,{"$f":"H47/(1+(I47))","v":0}]
[{"$f":"IF(B48<>\"\",MAX($A$30:A47)+1,\"\")","v":""},null,null,null,null,null,null,null,null,{"$f":"H48/(1+(I48))","v":0}]
[{"$f":"IF(B49<>\"\",MAX($A$30:A48)+1,\"\")","v":""},null,null,null,null,null,null,null,null,0]
[{"$f":"IF(B50<>\"\",MAX($A$30:A49)+1,\"\")","v":""},null,null,null,null,null,null,null,null,0]
[{"$f":"IF(B51<>\"\",MAX($A$30:A50)+1,\"\")","v":""},null,null,null,null,null,null,null,null,0]
[null,null,null,null,null,null,null,null,null,"Subtotal D",{"$f":"SUM(K47:K51)","v":0},{"$f":"SUM(L47:L51)","v":0}]
["E. Despeses derivades de la internacionalització de l'activitat"]
[{"$f":"IF(B54<>\"\",MAX($A$11:A53)+1,\"\")","v":""},null,null,null,null,null,null,null,null,{"$f":"H54/(1+(I54))","v":0}]
[{"$f":"IF(B55<>\"\",MAX($A$30:A54)+1,\"\")","v":""},null,null,null,null,null,null,null,null,{"$f":"H55/(1+(I55))","v":0}]
[{"$f":"IF(B56<>\"\",MAX($A$30:A55)+1,\"\")","v":""},null,null,null,null,null,null,null,null,0]
[{"$f":"IF(B57<>\"\",MAX($A$30:A56)+1,\"\")","v":""},null,null,null,null,null,null,null,null,0]
[{"$f":"IF(B58<>\"\",MAX($A$30:A57)+1,\"\")","v":""},null,null,null,null,null,null,null,null,0]
[null,null,null,null,null,null,null,null,null,"Subtotal E",{"$f":"SUM(K54:K58)","v":0},{"$f":"SUM(L54:L58)","v":0}]
["F. Despeses de l'adquisició d'equipament científic-tècnic (exclosa l'adquisició de software durant els darrers 3 mesos d'execució del projecte, exclosa l'adquisició de material inventariable: equips informàtics)                                                                                                                               Aquestes despeses no poden excedir del 30% de l'import concedit"]
[{"$f":"IF(B61<>\"\",MAX($A$11:A60)+1,\"\")","v":""},null,null,null,null,null,null,null,null,{"$f":"H61/(1+(I61))","v":0}]
[{"$f":"IF(B62<>\"\",MAX($A$30:A61)+1,\"\")","v":""},null,null,null,null,null,null,null,null,{"$f":"H62/(1+(I62))","v":0}]
[{"$f":"IF(B63<>\"\",MAX($A$30:A62)+1,\"\")","v":""},null,null,null,null,null,null,null,null,0]
[{"$f":"IF(B64<>\"\",MAX($A$30:A63)+1,\"\")","v":""},null,null,null,null,null,null,null,null,0]
[{"$f":"IF(B65<>\"\",MAX($A$30:A64)+1,\"\")","v":""},null,null,null,null,null,null,null,null,0]
[{"$f":"IF(B66<>\"\",MAX($A$30:A65)+1,\"\")","v":""},null,null,null,null,null,null,null,null,0]
[{"$f":"IF(B67<>\"\",MAX($A$30:A66)+1,\"\")","v":""},null,null,null,null,null,null,null,null,0]
[null,null,null,null,null,null,null,null,null,"Subtotal F",{"$f":"SUM(K61:K67)","v":0},{"$f":"SUM(L61:L67)","v":0}]
["G. Despeses de l'adquisició de material fungible, subministres (llum, aigua, gas)  i productes similars"]
[{"$f":"IF(B70<>\"\",MAX($A$11:A69)+1,\"\")","v":""},null,null,null,null,null,null,null,null,{"$f":"H70/(1+(I70))","v":0}]
[{"$f":"IF(B71<>\"\",MAX($A$30:A70)+1,\"\")","v":""},null,null,null,null,null,null,null,null,{"$f":"H71/(1+(I71))","v":0}]
[{"$f":"IF(B72<>\"\",MAX($A$30:A71)+1,\"\")","v":""},null,null,null,null,null,null,null,null,0]
[{"$f":"IF(B73<>\"\",MAX($A$30:A72)+1,\"\")","v":""},null,null,null,null,null,null,null,null,0]
[{"$f":"IF(B74<>\"\",MAX($A$30:A73)+1,\"\")","v":""},null,null,null,null,null,null,null,null,0]
[{"$f":"IF(B75<>\"\",MAX($A$30:A74)+1,\"\")","v":""},null,null,null,null,null,null,null,null,0]
[{"$f":"IF(B76<>\"\",MAX($A$30:A75)+1,\"\")","v":""},null,null,null,null,null,null,null,null,0]
[{"$f":"IF(B77<>\"\",MAX($A$30:A76)+1,\"\")","v":""},null,null,null,null,null,null,null,null,0]
[{"$f":"IF(B78<>\"\",MAX($A$30:A77)+1,\"\")","v":""},null,null,null,null,null,null,null,null,0]
[null,null,null,null,null,null,null,null,null,"Subtotal G",{"$f":"SUM(K70:K78)","v":0},{"$f":"SUM(L70:L78)","v":0}]
["H. Despeses d'auditoria"]
[{"$f":"IF(B81<>\"\",MAX($A$11:A80)+1,\"\")","v":""},null,null,null,null,null,null,null,null,{"$f":"H81/(1+(I81))","v":0}]
[{"$f":"IF(B82<>\"\",MAX($A$30:A81)+1,\"\")","v":""},null,null,null,null,null,null,null,null,{"$f":"H82/(1+(I82))","v":0}]
[{"$f":"IF(B83<>\"\",MAX($A$30:A82)+1,\"\")","v":""},null,null,null,null,null,null,null,null,0]
[{"$f":"IF(B84<>\"\",MAX($A$30:A83)+1,\"\")","v":""},null,null,null,null,null,null,null,null,0]
[null,null,null,null,null,null,null,null,null,"Subtotal H",{"$f":"SUM(K81:K84)","v":0},{"$f":"SUM(L81:L84)","v":0}]
["I. Despeses indirectes (màx 18% de l'ajut)"]
[{"$f":"IF(B87<>\"\",MAX($A$11:A86)+1,\"\")","v":""},null,null,null,null,null,null,null,null,{"$f":"H87/(1+(I87))","v":0}]
[{"$f":"IF(B88<>\"\",MAX($A$30:A87)+1,\"\")","v":""},null,null,null,null,null,null,null,null,{"$f":"H88/(1+(I88))","v":0}]
[{"$f":"IF(B89<>\"\",MAX($A$30:A88)+1,\"\")","v":""},null,null,null,null,null,null,null,null,0]
[null,null,null,null,null,null,null,null,null,"Subtotal I",{"$f":"SUM(K87:K89)","v":0},{"$f":"SUM(L87:L89)","v":0}]
["J. Altres despeses (no incloses en els apartats anteriors)"]
[{"$f":"IF(B92<>\"\",MAX($A$11:A91)+1,\"\")","v":""},null,null,null,null,null,null,null,null,{"$f":"H92/(1+(I92))","v":0}]
[{"$f":"IF(B93<>\"\",MAX($A$30:A92)+1,\"\")","v":""},null,null,null,null,null,null,null,null,{"$f":"H93/(1+(I93))","v":0}]
[{"$f":"IF(B94<>\"\",MAX($A$30:A93)+1,\"\")","v":""},null,null,null,null,null,null,null,null,0]
[null,null,null,null,null,null,null,null,null,"Subtotal J",{"$f":"SUM(K92:K94)","v":0},{"$f":"SUM(L92:L94)","v":0}]
["TOTAL DESPESES",null,null,null,null,null,null,"TOTAL",null,null,{"$f":"+K29+K38+K45+K52+K59+K68+K79+K85+K90+K95","v":0},{"$f":"+L29+L38+L45+L52+L59+L68+L79+L85+L90+L95","v":0}]
[]
["El Sr./Sra. (indicar el nom i cognoms de la persona representant que signa la justificació)  amb DNI/NIE (indicar el núm. DNI) en qualitat de persona física beneficiària o representant legal de la persona jurídica beneficiària (indicar nom i cognoms) amb NIF (indicar núm DNI)."]
["DECLARA que els rebuts/tiquets que s'han identificat com a tals en el camp d'observacions corresponen a despeses generades per l'esmentada activitat, que pels seus imports i característiques no han pogut ser objecte de factura; que els justificants relacionats imputats al projecte/activitat/servei subvencionat durant el seu període d'execució han estat efectivament pagats; que custodiarà la documentació suport que ho acredita; que aquesta documentació es troba a disposició de l'Ajuntament de Barcelona o dels altres ens municipals en els arxius d'aquesta Entitat, durant un període mínim de 4 anys a comptar des de la data de presentació de la present justificació."]
[]
[]
[null,"Població i data:  ",null,null,null,"Signatura del representant legal de l'entitat líder"]
[]
["Notes:"]
["(*) S'han de relacionar totes les despeses del projecte/activitat/servei subvencionat. En el cas que el nombre de files de cada concepte sigui insuficient podeu inserir línies dins del mateix concepte seleccionant una cel·la verda i fent clic sobre el botó d'inserir línia."]
["(0) El número d'ordre ha de ser correlatiu començant per 1"]
["(1) Respecte a les despeses de recursos humans, pot ser subvencionable el cost total salarial mensual, que correspon a la suma de la retribució bruta que apareix a la nòmina del treballador/a més la quota de l'empresa a la Seg. Social. Les despeses de personal es justifiquen amb la nòmina del treballador acompanyada dels corresponents RLC i RNT de la TGSS i el model 111 de l'IRPF."]
["(2) En el cas que el document justificatiu de la resta de despeses, no sigui una factura, sinó un altre document probatori equivalent, com un rebut o justificant (com per dietes o transport públic), indiqueu-lo en el camp d'observacions."]
["(3) En el cas que un justificant inclogui conceptes que no tenen a veure amb el projecte/activitat/servei per al qual s'ha atorgat la subvenció, aquí només s'ha d'indicar la part que realment s'ha dedicat al projecte."]
["(4) En aquesta columna s'ha d'indicar l'import total o parcial de la factura  que s'imputa a la subvenció rebuda de l'Ajuntament de Barcelona/IBE/ICUB/IMD. El total imputat, en aquesta columna, ha de ser igual  a l'import de la subvenció rebuda."]

{"sheet":"Relació d'ingressos 1 ","index":1,"n_rows":62,"n_cols":10,"rows_kept":62,"cut":false,"hidden":false,"merged":[[48,0,48,3],[50,0,50,9],[51,0,52,9],[48,6,48,9],[0,0,0,9],[9,0,9,9],[17,0,17,9],[24,0,24,9],[7,6,8,9],[10,6,10,9],[11,6,11,9],[7,0,8,0],[12,6,12,9],[15,6,15,9],[3,2,3,3],[2,2,2,3],[6,0,6,3],[4,2,4,3],[7,2,7,3],[7,1,8,1],[16,0,16,3],[47,0,47,3],[31,0,31,9],[39,0,39,9],[38,0,38,3],[16,6,16,9],[23,6,23,9],[33,6,33,9],[32,6,32,9],[34,6,34,9],[38,6,38,9],[37,6,37,9],[42,6,42,9],[41,6,41,9],[40,6,40,9],[23,0,23,3],[36,6,36,9],[47,6,47,9],[46,6,46,9],[45,6,45,9],[43,6,43,9],[35,6,35,9],[30,0,30,3],[13,6,13,9],[14,6,14,9],[28,6,28,9],[44,6,44,9],[22,6,22,9],[21,6,21,9],[20,6,20,9],[19,6,19,9],[18,6,18,9],[25,6,25,9],[30,6,30,9],[29,6,29,9],[27,6,27,9],[26,6,26,9]]}
["Detall de tots els ingressos obtinguts i aportacions del propi beneficiari per a l'execució de l'activitat subvencionada"]
[]
[null,"Nom de l'entitat beneficiària 1:        ",{"$f":"IF('Relació de despeses 1'!C3:D3<>\"\",'Relació de despeses 1'!C3:D3,\"\")","v":""},null,"Import total del projecte entitat líder 1:",null,null,{"$f":"IF(+'Relació de despeses 1'!K3=\"\",\"\",+'Relació de despeses 1'!K3)","v":""},"euros"]
[null,"Codi de subvenció",{"$f":"IF('Relació de despeses 1'!C4:D4<>\"\",'Relació de despeses 1'!C4:D4,\"\")","v":""},null,"Import de la subvenció atorgada entitat líder 1:",null,null,{"$f":"IF(+'Relació de despeses 1'!K4=\"\",\"\",+'Relació de despeses 1'!K4)","v":""},"euros"]
[null,"Nom del projecte subvencionat",{"$f":"IF('Relació de despeses 1'!C5:D5<>\"\",'Relació de despeses 1'!C5:D5,\"\")","v":""},null,"Període d'execució del projecte subvencionat:",null,null,{"$f":"IF(+'Relació de despeses 1'!K5=\"\",\"\",+'Relació de despeses 1'!K5)","v":""},"a",{"$f":"IF(+'Relació de despeses 1'!N5=\"\",\"\",+'Relació de despeses 1'!N5)","v":""}]
[]
["Ingressos del projecte/activitat/servei subvencionat"]
["núm. d'ordre (0)","Concepte de l'ingrés","Emissor de l'ingrés",null,"Data de cobrament\n(dd/mm/aaaa)","Import","Observacions"]
[null,null,"NIF","Nom","(2)","euros"]
["A. Subvencions de l'Ajuntament de Barcelona (1)"]
[{"$f":"IF(B11<>\"\",1,\"\")","v":""}]
[]
[]
[]
[{"$f":"IF(B15<>\"\",MAX($A$10:A14)+1,\"\")","v":""}]
[{"$f":"IF(B16<>\"\",MAX($A$10:A15)+1,\"\")","v":""}]
[null,null,null,null,"Subtotal A",{"$f":"SUM(F11:F16)","v":0}]
["B. Subvencions d'altres administracions"]
[{"$f":"IF(B19<>\"\",MAX($A$10:A18)+1,\"\")","v":""}]
[{"$f":"IF(B20<>\"\",MAX($A$10:A19)+1,\"\")","v":""}]
[{"$f":"IF(B21<>\"\",MAX($A$10:A20)+1,\"\")","v":""}]
[{"$f":"IF(B22<>\"\",MAX($A$10:A21)+1,\"\")","v":""}]
[{"$f":"IF(B23<>\"\",MAX($A$10:A22)+1,\"\")","v":""}]
[null,null,null,null,"Subtotal B",{"$f":"SUM(F19:F23)","v":0}]
["C. Aportacions d'ens privats"]
[{"$f":"IF(B26<>\"\",MAX($A$10:A25)+1,\"\")","v":""}]
[{"$f":"IF(B27<>\"\",MAX($A$10:A26)+1,\"\")","v":""}]
[{"$f":"IF(B28<>\"\",MAX($A$10:A27)+1,\"\")","v":""}]
[{"$f":"IF(B29<>\"\",MAX($A$10:A28)+1,\"\")","v":""}]
[{"$f":"IF(B30<>\"\",MAX($A$10:A29)+1,\"\")","v":""}]
[null,null,null,null,"Subtotal C",{"$f":"SUM(F26:F30)","v":0}]
["D. Recursos propis de l'entitat"]
[{"$f":"IF(B33<>\"\",MAX($A$10:A32)+1,\"\")","v":""}]
[{"$f":"IF(B34<>\"\",MAX($A$10:A33)+1,\"\")","v":""}]
[{"$f":"IF(B35<>\"\",MAX($A$10:A34)+1,\"\")","v":""}]
[{"$f":"IF(B36<>\"\",MAX($A$10:A35)+1,\"\")","v":""}]
[{"$f":"IF(B37<>\"\",MAX($A$10:A36)+1,\"\")","v":""}]
[{"$f":"IF(B38<>\"\",MAX($A$10:A37)+1,\"\")","v":""}]
[null,null,null,null,"Subtotal D",{"$f":"SUM(F33:F38)","v":0}]
["E. Altres ingressos"]
[{"$f":"IF(B41<>\"\",MAX($A$10:A40)+1,\"\")","v":""}]
[{"$f":"IF(B42<>\"\",MAX($A$10:A41)+1,\"\")","v":""}]
[{"$f":"IF(B43<>\"\",MAX($A$10:A42)+1,\"\")","v":""}]
[{"$f":"IF(B44<>\"\",MAX($A$10:A43)+1,\"\")","v":""}]
[{"$f":"IF(B45<>\"\",MAX($A$10:A44)+1,\"\")","v":""}]
[{"$f":"IF(B46<>\"\",MAX($A$10:A45)+1,\"\")","v":""}]
[{"$f":"IF(B47<>\"\",MAX($A$10:A46)+1,\"\")","v":""}]
[null,null,null,null,"Subtotal E",{"$f":"SUM(F41:F47)","v":0}]
["Total INGRESSOS",null,null,null,"TOTAL",{"$f":"+F17+F24+F31+F39+F48","v":0}]
[]
[{"$f":"'Relació de despeses 1'!A98:N98","v":"El Sr./Sra. (indicar el nom i cognoms de la persona representant que signa la justificació)  amb DNI/NIE (indicar el núm. DNI) en qualitat de persona física beneficiària o representant legal de la persona jurídica beneficiària (indicar nom i cognoms) amb NIF (indicar núm DNI)."}]
["DECLARA que els ingressos imputats al projecte/activitat/servei subvencionat han estat efectivament ingressats; que custodiarà la documentació suport que ho acredita; que  aquesta documentació es troba a disposició de l'Ajuntament de Barcelona o dels altres ens municipals en els arxius d'aquesta Entitat, durant un període mínim de 4 anys a comptar des de la data de presentació de la present justificació."]
[]
[]
[]
[]
[null,"Població i data: ",null,null,"Signatura del representant legal de l'entitat líder"]
[]
[null,"Nota:"]
[null,"(0) El número d'ordre ha de ser correlatiu començant pel número 1"]
[null,"(1) Si per part de l'Ajuntament només s'ha rebut subvenció d'un sector o districte o institut, es poden esborrar la resta, que s'han indicat a mode d'exemple."]
[null,"(2) En cas que l'ingrés estigui pendent cobrament, indicar \"P. Cobrament\" "]

{"sheet":"Resum despeses-ingressos 1","index":2,"n_rows":44,"n_cols":11,"rows_kept":44,"cut":false,"hidden":false,"merged":[[2,0,2,1],[2,2,2,3],[2,5,2,6],[3,0,3,1],[3,2,3,3],[3,5,3,6],[4,0,4,1],[4,2,4,3],[5,0,5,3],[5,5,5,8],[6,0,6,1],[6,5,6,6],[7,0,7,1],[7,5,7,6],[8,0,8,1],[8,5,8,6],[9,0,9,1],[9,5,9,6],[10,0,10,1],[10,5,10,6],[11,0,11,1],[11,5,11,6],[12,0,12,1],[12,5,12,6],[16,7,16,8],[17,0,17,1],[13,0,13,1],[13,5,13,6],[14,0,14,1],[15,0,15,1],[15,5,15,6],[16,0,16,1],[16,5,16,6],[43,0,43,10],[20,0,20,8],[21,0,27,10],[29,0,29,10],[30,0,31,10],[33,0,33,1],[37,0,37,10],[38,0,38,10],[39,0,39,10],[40,0,40,10],[41,0,41,10],[42,0,42,10]]}
["Estat de les despeses realitzades i dels ingressos obtinguts per a l'execució de l'activitat subvencionada (*)"]
[]
["Nom de l'entitat beneficiària 1:         ",null,{"$f":"IF('Relació de despeses 1'!C3:D3<>\"\",'Relació de despeses 1'!C3:D3,\"\")","v":""},null,null,"Import total del projecte entitat líder 1:",null,{"$f":"IF(+'Relació de despeses 1'!K3=\"\",\"\",+'Relació de despeses 1'!K3)","v":""},"euros"]
["Codi de subvenció:",null,{"$f":"IF('Relació de despeses 1'!C4:D4<>\"\",'Relació de despeses 1'!C4:D4,\"\")","v":""},null,null,"Import de la subvenció atorgada entitat líder 1:",null,{"$f":"IF(+'Relació de despeses 1'!K4=\"\",\"\",+'Relació de despeses 1'!K4)","v":""},"euros"]
["Nom del projecte subvencionat:",null,{"$f":"IF('Relació de despeses 1'!C5:D5<>\"\",'Relació de despeses 1'!C5:D5,\"\")","v":""},null,null,"Període d'execució del projecte subvencionat:",null,null,{"$f":"IF(+'Relació de despeses 1'!K5=\"\",\"\",+'Relació de despeses 1'!K5)","v":""},"a",{"$f":"IF(+'Relació de despeses 1'!N5=\"\",\"\",+'Relació de despeses 1'!N5)","v":""}]
["Despeses del projecte/activitat/servei subvencionat",null,null,null,null,"Ingressos del projecte/activitat/servei subvencionat"]
["Concepte",null,"Previsió inicial de despeses (1)","Despeses realitzades\n(2)",null,"Concepte",null,"Previsió inicial d'ingressos (1)","Ingressos obtinguts\n(3)"]
["A. Recursos Humans. Despeses de personal (retribucions brutes i Seguretat Social del personal fix o eventual contractat)",null,null,{"$f":"'Relació de despeses 1'!K29","v":0},null,"A. Subvencions municipals",null,null,{"$f":"'Relació d''ingressos 1 '!F17","v":0}]
["B. Despeses derivades de la difusió, promoció, publicitat del projecte i dels resultats",null,null,{"$f":"'Relació de despeses 1'!K38","v":0},null,"B. Subvencions d'altres administracions",null,null,{"$f":"'Relació d''ingressos 1 '!F24","v":0}]
["C. Despeses de publicacions en format Open Access",null,null,{"$f":"'Relació de despeses 1'!K45","v":0},null,"C. Aportacions d'ens privats",null,null,{"$f":"'Relació d''ingressos 1 '!F31","v":0}]
["D. Despeses de viatges, allotjament i manutenció",null,null,{"$f":"'Relació de despeses 1'!K52","v":0},null,"D. Recursos propis de l'entitat",null,null,{"$f":"'Relació d''ingressos 1 '!F39","v":0}]
["E. Despeses derivades de la internacionalització de l'activitat",null,null,{"$f":"'Relació de despeses 1'!K59","v":0},null,"E. Altres ingressos",null,null,{"$f":"'Relació d''ingressos 1 '!F48","v":0}]
["F. Despeses de l'adquisició d'equipament científic-tècnic (exclosa l'adquisició de software durant els darrers 3 mesos d'execució, exclosa l'adquisició de material inventariable: equips informàtics) No pot excedir del 30% de l'import concedit",null,null,{"$f":"'Relació de despeses 1'!K68","v":0},null,"Total Ingressos",null,{"$f":"SUM(H8:H12)","v":0},{"$f":"SUM(I8:I12)","v":0}]
["G. Despeses de l'adquisició de material fungible, subministres i productes similars",null,null,{"$f":"'Relació de despeses 1'!K79","v":0},null,"% finançament municipal (5)",null,{"$f":"IF(H8=\"\",\"- %\",+H8/H13)","v":"- %"},{"$f":"IF(I8=\"\",\"- %\",+I8/I13)","v":{"$error":"#DIV/0!"}}]
["H. Despeses d'auditoria",null,null,{"$f":"'Relació de despeses 1'!K85","v":0},null,null,null,"Previsió inicial","Real"]
["I. Despeses indirectes (màx 18% de l'ajut)",null,null,{"$f":"'Relació de despeses 1'!K90","v":0},null,"BALANÇ FINAL                                         Diferència Ingressos - Despeses ",null,{"$f":"+H13-C18","v":0},{"$f":"+I13-D18","v":0}]
["J. Altres despeses ( no incloses en els apartats anteriors)",null,null,{"$f":"'Relació de despeses 1'!K95","v":0},null,"Desviació de Despeses (4)",null,"Desviació d'ingressos (4)"]
["Total Despeses",null,{"$f":"SUM(C8:C17)","v":0},{"$f":"SUM(D8:D17)","v":0},null,"Import"," % (6)","Import","%"]
[null,null,null,null,null,{"$f":"+D18-C18","v":0},{"$f":"+F19/C18","v":{"$error":"#DIV/0!"}},{"$f":"+I13-H13","v":0},{"$f":"+H19/H13","v":{"$error":"#DIV/0!"}}]
[]
["Explicar els motius pels quals existeix una desviació entre la despesa prevista en la sol·licitud de subvenció i la finalment realitzada , així com entre els ingressos previstos i els obtinguts."]
[]
[]
[]
[]
[]
[]
[]
[]
[{"$f":"'Relació de despeses 1'!A98:N98","v":"El Sr./Sra. (indicar el nom i cognoms de la persona representant que signa la justificació)  amb DNI/NIE (indicar el núm. DNI) en qualitat de persona física beneficiària o representant legal de la persona jurídica beneficiària (indicar nom i cognoms) amb NIF (indicar núm DNI)."}]
["DECLARA que en relació al projecte/activitat/servei subvencionat s'han produït els ingressos i despeses que figuren en el present document, i que les desviacions respecte al pressupost inicial s'han produït per les motivacions a dalt esmentades, i perquè així consti, als efectes de justificar el compliment de l'objecte de la subvenció concedida, signo la present declaració responsable."]
[]
[]
["Població i data: ",null,null,null,null,"Signatura del representant legal de l'entitat líder"]
[]
[]
["Notes:"]
["(*) Les columnes ombrejades en color groc s'aniran emplenant automàticament a partir de les dades introduïdes en els documents de Relació de despeses 1 i Relació d'ingressos 1. "]
["(1) Previsió inicial = S'han d'indicar la previsió inicial de despeses i d'ingressos segons allò que es va indicar al projecte original en el \"pla de viabilitat econòmica del projecte - Annex 4\"."]
["(2) Despeses reals = Cost real total del projecte subvencionat. Automàticament s'introduiran els subtotals de les despeses relacionades al full Relació de despeses 1."]
["(3) Ingresos reals = Total d'ingressos obtinguts per a la realització del projecte subvencionat. Automàticament s'introduiran els subtotals dels ingressos relacionats al full Relació d'ingressos 1."]
["(4) Desviació: En el cas de les despeses, la desviació és la diferència entre despeses reals i la previsió inicial de despeses; i en el cas d'ingressos, la diferència entre els ingressos reals i la previsió inicial d'ingressos. "]
["(5) % finançament municipal = percentatge que suposen les subvencions municipals (A) respecte del  total d'ingressos del projecte subvencionat."]
["(6) El % de la desviació final de despeses es calcula dividint l'import resultant de despeses reals - despeses previstes, entre el total de despeses previstes i de la mateixa manera els ingressos. En cas d'existir una desviació sempre s'ha de motivar."]

{"sheet":"Relació de despeses 2","index":3,"n_rows":110,"n_cols":13,"rows_kept":110,"cut":false,"hidden":false,"merged":[[0,0,0,13],[2,0,2,1],[2,10,2,11],[3,0,3,1],[3,10,3,11],[2,2,2,4],[3,2,3,4],[7,12,7,13],[8,12,8,13],[9,0,9,13],[10,12,10,13],[11,12,11,13],[12,12,12,13],[4,0,4,1],[4,10,4,11],[6,0,6,4],[7,0,8,0],[7,1,8,1],[7,2,8,2],[7,3,7,4],[4,2,4,4],[20,12,20,13],[21,12,21,13],[22,12,22,13],[23,12,23,13],[24,12,24,13],[27,12,27,13],[13,12,13,13],[14,12,14,13],[15,12,15,13],[16,12,16,13],[18,12,18,13],[19,12,19,13],[33,12,33,13],[34,12,34,13],[35,12,35,13],[36,12,36,13],[37,0,37,7],[37,12,37,13],[28,0,28,7],[28,12,28,13],[29,0,29,13],[30,12,30,13],[31,12,31,13],[32,12,32,13],[44,0,44,7],[44,12,44,13],[45,0,45,13],[46,12,46,13],[47,12,47,13],[48,12,48,13],[38,0,38,13],[39,12,39,13],[40,12,40,13],[41,12,41,13],[42,12,42,13],[43,12,43,13],[54,12,54,13],[55,12,55,13],[56,12,56,13],[57,12,57,13],[58,0,58,7],[58,12,58,13],[49,12,49,13],[50,12,50,13],[51,0,51,7],[51,12,51,13],[52,0,52,13],[53,12,53,13],[67,0,67,7],[67,12,67,13],[68,0,68,13],[69,12,69,13],[70,12,70,13],[71,12,71,13],[59,0,59,13],[60,12,60,13],[61,12,61,13],[62,12,62,13],[63,12,63,13],[66,12,66,13],[81,12,81,13],[82,12,82,13],[83,12,83,13],[84,0,84,7],[84,12,84,13],[85,0,85,13],[72,12,72,13],[77,12,77,13],[78,0,78,7],[78,12,78,13],[79,0,79,13],[80,12,80,13],[91,12,91,13],[92,12,92,13],[93,12,93,13],[94,0,94,7],[94,12,94,13],[95,0,95,5],[95,12,95,13],[86,12,86,13],[87,12,87,13],[88,12,88,13],[89,0,89,7],[89,12,89,13],[90,0,90,13],[107,0,107,13],[108,0,108,13],[109,0,109,13],[97,0,97,13],[98,0,98,13],[101,1,101,3],[101,5,101,13],[104,0,104,13],[106,0,106,13]]}
["Relació classificada de totes les despeses realitzades per a l'execució de l'activitat  subvencionada"]
[]
["Nom de l'entitat beneficiària 2:         ",null,null,null,null,null,null,null,null,"Import total del projecte entitat no líder 2:",null,null,"euros"]
["Codi de subvenció:",null,null,null,null,null,null,null,null,"Import de la subvenció atorgada entitat no líder 2:",null,null,"euros"]
["Nom del projecte subvencionat:",null,null,null,null,null,null,null,null,"Període d'execució del projecte subvencionat:",null,null,"a"]
[]
["Despeses del projecte/activitat/servei subvencionat (*)"]
["núm. d'ordre (0)","Número de document: justificants despesa personal (1), factura o rebut/tiquet(2)","Concepte de la factura / \ndocument probatori equivalent","Emissor de la factura",null,"Data d'emissió","Data de pagament de la factura","Import total de la factura","Percentatge d'iva deduït o el de després d'aplicar la Prorrata","Import després de deduïr l'IVA corresponent","Import imputable (dedicat) al projecte (3)","Import imputable a la subvenció municipal (4)","Observacions"]
[null,null,null,"NIF","Nom","dd/mm/aaaa","dd/mm/aaaa","euros","%","euros","euros","euros","(2)"]
["A. Recursos Humans. Despeses de personal (retribucions brutes i Seguretat Social del personal fix o eventual contractat)"]
[{"$f":"IF(B12<>\"\",1,\"\")","v":""},null,null,null,null,null,null,null,null,{"$f":"H11/(1+(I11))","v":0}]
[null,null,null,null,null,null,null,null,null,{"$f":"H12/(1+(I12))","v":0}]
[{"$f":"IF(B13<>\"\",MAX($A$11:A12)+1,\"\")","v":""},null,null,null,null,null,null,null,null,0]
[{"$f":"IF(B14<>\"\",MAX($A$11:A13)+1,\"\")","v":""},null,null,null,null,null,null,null,null,0]
[{"$f":"IF(B15<>\"\",MAX($A$11:A14)+1,\"\")","v":""},null,null,null,null,null,null,null,null,0]
[{"$f":"IF(B16<>\"\",MAX($A$11:A15)+1,\"\")","v":""},null,null,null,null,null,null,null,null,0]
[{"$f":"IF(B17<>\"\",MAX($A$11:A16)+1,\"\")","v":""},null,null,null,null,null,null,null,null,0]
[{"$f":"IF(B18<>\"\",MAX($A$11:A17)+1,\"\")","v":""},null,null,null,null,null,null,null,null,0]
[{"$f":"IF(B19<>\"\",MAX($A$11:A18)+1,\"\")","v":""},null,null,null,null,null,null,null,null,0]
[{"$f":"IF(B20<>\"\",MAX($A$11:A19)+1,\"\")","v":""},null,null,null,null,null,null,null,null,0]
[{"$f":"IF(B21<>\"\",MAX($A$11:A20)+1,\"\")","v":""},null,null,null,null,null,null,null,null,0]
[{"$f":"IF(B22<>\"\",MAX($A$11:A21)+1,\"\")","v":""},null,null,null,null,null,null,null,null,0]
[{"$f":"IF(B23<>\"\",MAX($A$11:A22)+1,\"\")","v":""},null,null,null,null,null,null,null,null,0]
[{"$f":"IF(B24<>\"\",MAX($A$11:A23)+1,\"\")","v":""},null,null,null,null,null,null,null,null,0]
[{"$f":"IF(B25<>\"\",MAX($A$11:A24)+1,\"\")","v":""},null,null,null,null,null,null,null,null,0]
[{"$f":"IF(B26<>\"\",MAX($A$11:A25)+1,\"\")","v":""},null,null,null,null,null,null,null,null,0]
[{"$f":"IF(B27<>\"\",MAX($A$11:A26)+1,\"\")","v":""},null,null,null,null,null,null,null,null,0]
[{"$f":"IF(B28<>\"\",MAX($A$11:A27)+1,\"\")","v":""},null,null,null,null,null,null,null,null,0]
[null,null,null,null,null,null,null,null,null,"Subtotal A",{"$f":"SUM(K11:K28)","v":0},{"$f":"SUM(L11:L28)","v":0}]
["B. Despeses derivades de la difusió, promoció, publicitat del projecte i dels resultats"]
[{"$f":"IF(B31<>\"\",MAX($A$11:A30)+1,\"\")","v":""},null,null,null,null,null,null,null,null,{"$f":"H31/(1+(I31))","v":0}]
[{"$f":"IF(B32<>\"\",MAX($A$30:A31)+1,\"\")","v":""},null,null,null,null,null,null,null,null,{"$f":"H32/(1+(I32))","v":0}]
[{"$f":"IF(B33<>\"\",MAX($A$30:A32)+1,\"\")","v":""},null,null,null,null,null,null,null,null,0]
[{"$f":"IF(B34<>\"\",MAX($A$30:A33)+1,\"\")","v":""},null,null,null,null,null,null,null,null,0]
[{"$f":"IF(B35<>\"\",MAX($A$30:A34)+1,\"\")","v":""},null,null,null,null,null,null,null,null,0]
[{"$f":"IF(B36<>\"\",MAX($A$30:A35)+1,\"\")","v":""},null,null,null,null,null,null,null,null,0]
[{"$f":"IF(B37<>\"\",MAX($A$30:A36)+1,\"\")","v":""},null,null,null,null,null,null,null,null,0]
[null,null,null,null,null,null,null,null,null,"Subtotal B",{"$f":"SUM(K31:K37)","v":0},{"$f":"SUM(L31:L37)","v":0}]
["C. Despeses de publicacions en format Open Access"]
[{"$f":"IF(B40<>\"\",MAX($A$11:A39)+1,\"\")","v":""},null,null,null,null,null,null,null,null,{"$f":"H40/(1+(I40))","v":0}]
[{"$f":"IF(B41<>\"\",MAX($A$30:A40)+1,\"\")","v":""},null,null,null,null,null,null,null,null,{"$f":"H41/(1+(I41))","v":0}]
[{"$f":"IF(B42<>\"\",MAX($A$30:A41)+1,\"\")","v":""},null,null,null,null,null,null,null,null,0]
[{"$f":"IF(B43<>\"\",MAX($A$30:A42)+1,\"\")","v":""},null,null,null,null,null,null,null,null,0]
[{"$f":"IF(B44<>\"\",MAX($A$30:A43)+1,\"\")","v":""},null,null,null,null,null,null,null,null,0]
[null,null,null,null,null,null,null,null,null,"Subtotal C",{"$f":"SUM(K40:K44)","v":0},{"$f":"SUM(L40:L44)","v":0}]
["D. Despeses de viatges, allotjament i manutenció (2)"]
[{"$f":"IF(B47<>\"\",MAX($A$11:A46)+1,\"\")","v":""},null,null,null,null,null,null,null,null,{"$f":"H47/(1+(I47))","v":0}]
[{"$f":"IF(B48<>\"\",MAX($A$30:A47)+1,\"\")","v":""},null,null,null,null,null,null,null,null,{"$f":"H48/(1+(I48))","v":0}]
[{"$f":"IF(B49<>\"\",MAX($A$30:A48)+1,\"\")","v":""},null,null,null,null,null,null,null,null,0]
[{"$f":"IF(B50<>\"\",MAX($A$30:A49)+1,\"\")","v":""},null,null,null,null,null,null,null,null,0]
[{"$f":"IF(B51<>\"\",MAX($A$30:A50)+1,\"\")","v":""},null,null,null,null,null,null,null,null,0]
[null,null,null,null,null,null,null,null,null,"Subtotal D",{"$f":"SUM(K47:K51)","v":0},{"$f":"SUM(L47:L51)","v":0}]
["E. Despeses derivades de la internacionalització de l'activitat"]
[{"$f":"IF(B54<>\"\",MAX($A$11:A53)+1,\"\")","v":""},null,null,null,null,null,null,null,null,{"$f":"H54/(1+(I54))","v":0}]
[{"$f":"IF(B55<>\"\",MAX($A$30:A54)+1,\"\")","v":""},null,null,null,null,null,null,null,null,{"$f":"H55/(1+(I55))","v":0}]
[{"$f":"IF(B56<>\"\",MAX($A$30:A55)+1,\"\")","v":""},null,null,null,null,null,null,null,null,0]
[{"$f":"IF(B57<>\"\",MAX($A$30:A56)+1,\"\")","v":""},null,null,null,null,null,null,null,null,0]
[{"$f":"IF(B58<>\"\",MAX($A$30:A57)+1,\"\")","v":""},null,null,null,null,null,null,null,null,0]
[null,null,null,null,null,null,null,null,null,"Subtotal E",{"$f":"SUM(K54:K58)","v":0},{"$f":"SUM(L54:L58)","v":0}]
["F. Despeses de l'adquisició d'equipament científic-tècnic (exclosa l'adquisició de software durant els darrers 3 mesos d'execució del projecte, exclosa l'adquisició de material inventariable: equips informàtics)                                                                                                                               Aquestes despeses no poden excedir del 30% de l'import concedit"]
[{"$f":"IF(B61<>\"\",MAX($A$11:A60)+1,\"\")","v":""},null,null,null,null,null,null,null,null,{"$f":"H61/(1+(I61))","v":0}]
[{"$f":"IF(B62<>\"\",MAX($A$30:A61)+1,\"\")","v":""},null,null,null,null,null,null,null,null,{"$f":"H62/(1+(I62))","v":0}]
[{"$f":"IF(B63<>\"\",MAX($A$30:A62)+1,\"\")","v":""},null,null,null,null,null,null,null,null,0]
[{"$f":"IF(B64<>\"\",MAX($A$30:A63)+1,\"\")","v":""},null,null,null,null,null,null,null,null,0]
[{"$f":"IF(B65<>\"\",MAX($A$30:A64)+1,\"\")","v":""},null,null,null,null,null,null,null,null,0]
[{"$f":"IF(B66<>\"\",MAX($A$30:A65)+1,\"\")","v":""},null,null,null,null,null,null,null,null,0]
[{"$f":"IF(B67<>\"\",MAX($A$30:A66)+1,\"\")","v":""},null,null,null,null,null,null,null,null,0]
[null,null,null,null,null,null,null,null,null,"Subtotal F",{"$f":"SUM(K61:K67)","v":0},{"$f":"SUM(L61:L67)","v":0}]
["G. Despeses de l'adquisició de material fungible, subministres (llum, aigua, gas)  i productes similars"]
[{"$f":"IF(B70<>\"\",MAX($A$11:A69)+1,\"\")","v":""},null,null,null,null,null,null,null,null,{"$f":"H70/(1+(I70))","v":0}]
[{"$f":"IF(B71<>\"\",MAX($A$30:A70)+1,\"\")","v":""},null,null,null,null,null,null,null,null,{"$f":"H71/(1+(I71))","v":0}]
[{"$f":"IF(B72<>\"\",MAX($A$30:A71)+1,\"\")","v":""},null,null,null,null,null,null,null,null,0]
[{"$f":"IF(B73<>\"\",MAX($A$30:A72)+1,\"\")","v":""},null,null,null,null,null,null,null,null,0]
[{"$f":"IF(B74<>\"\",MAX($A$30:A73)+1,\"\")","v":""},null,null,null,null,null,null,null,null,0]
[{"$f":"IF(B75<>\"\",MAX($A$30:A74)+1,\"\")","v":""},null,null,null,null,null,null,null,null,0]
[{"$f":"IF(B76<>\"\",MAX($A$30:A75)+1,\"\")","v":""},null,null,null,null,null,null,null,null,0]
[{"$f":"IF(B77<>\"\",MAX($A$30:A76)+1,\"\")","v":""},null,null,null,null,null,null,null,null,0]
[{"$f":"IF(B78<>\"\",MAX($A$30:A77)+1,\"\")","v":""},null,null,null,null,null,null,null,null,0]
[null,null,null,null,null,null,null,null,null,"Subtotal G",{"$f":"SUM(K70:K78)","v":0},{"$f":"SUM(L70:L78)","v":0}]
["H. Despeses d'auditoria"]
[{"$f":"IF(B81<>\"\",MAX($A$11:A80)+1,\"\")","v":""},null,null,null,null,null,null,null,null,{"$f":"H81/(1+(I81))","v":0}]
[{"$f":"IF(B82<>\"\",MAX($A$30:A81)+1,\"\")","v":""},null,null,null,null,null,null,null,null,{"$f":"H82/(1+(I82))","v":0}]
[{"$f":"IF(B83<>\"\",MAX($A$30:A82)+1,\"\")","v":""},null,null,null,null,null,null,null,null,0]
[{"$f":"IF(B84<>\"\",MAX($A$30:A83)+1,\"\")","v":""},null,null,null,null,null,null,null,null,0]
[null,null,null,null,null,null,null,null,null,"Subtotal H",{"$f":"SUM(K81:K84)","v":0},{"$f":"SUM(L81:L84)","v":0}]
["I. Despeses indirectes (màx 18% de l'ajut)"]
[{"$f":"IF(B87<>\"\",MAX($A$11:A86)+1,\"\")","v":""},null,null,null,null,null,null,null,null,{"$f":"H87/(1+(I87))","v":0}]
[{"$f":"IF(B88<>\"\",MAX($A$30:A87)+1,\"\")","v":""},null,null,null,null,null,null,null,null,{"$f":"H88/(1+(I88))","v":0}]
[{"$f":"IF(B89<>\"\",MAX($A$30:A88)+1,\"\")","v":""},null,null,null,null,null,null,null,null,0]
[null,null,null,null,null,null,null,null,null,"Subtotal I",{"$f":"SUM(K87:K89)","v":0},{"$f":"SUM(L87:L89)","v":0}]
["J. Altres despeses (no incloses en els apartats anteriors)"]
[{"$f":"IF(B92<>\"\",MAX($A$11:A91)+1,\"\")","v":""},null,null,null,null,null,null,null,null,{"$f":"H92/(1+(I92))","v":0}]
[{"$f":"IF(B93<>\"\",MAX($A$30:A92)+1,\"\")","v":""},null,null,null,null,null,null,null,null,{"$f":"H93/(1+(I93))","v":0}]
[{"$f":"IF(B94<>\"\",MAX($A$30:A93)+1,\"\")","v":""},null,null,null,null,null,null,null,null,0]
[null,null,null,null,null,null,null,null,null,"Subtotal J",{"$f":"SUM(K92:K94)","v":0},{"$f":"SUM(L92:L94)","v":0}]
["TOTAL DESPESES",null,null,null,null,null,null,"TOTAL",null,null,{"$f":"+K29+K38+K45+K52+K59+K68+K79+K85+K90+K95","v":0},{"$f":"+L29+L38+L45+L52+L59+L68+L79+L85+L90+L95","v":0}]
[]
["El Sr./Sra. (indicar el nom i cognoms de la persona representant que signa la justificació)  amb DNI/NIE (indicar el núm. DNI) en qualitat de persona física beneficiària o representant legal de la persona jurídica beneficiària (indicar nom i cognoms) amb NIF (indicar núm DNI)."]
["DECLARA que els rebuts/tiquets que s'han identificat com a tals en el camp d'observacions corresponen a despeses generades per l'esmentada activitat, que pels seus imports i característiques no han pogut ser objecte de factura; que els justificants relacionats imputats al projecte/activitat/servei subvencionat durant el seu període d'execució han estat efectivament pagats; que custodiarà la documentació suport que ho acredita; que aquesta documentació es troba a disposició de l'Ajuntament de Barcelona o dels altres ens municipals en els arxius d'aquesta Entitat, durant un període mínim de 4 anys a comptar des de la data de presentació de la present justificació."]
[]
[]
[null,"Població i data: ",null,null,null,"Signatura del representant legal de l'entitat no líder 2"]
[]
["Notes:"]
["(*) S'han de relacionar totes les despeses del projecte/activitat/servei subvencionat. En el cas que el nombre de files de cada concepte sigui insuficient podeu inserir línies dins del mateix concepte seleccionant una cel·la verda i fent clic sobre el botó d'inserir línia."]
["(0) El número d'ordre ha de ser correlatiu començant per 1"]
["(1) Respecte a les despeses de recursos humans, pot ser subvencionable el cost total salarial mensual, que correspon a la suma de la retribució bruta que apareix a la nòmina del treballador/a més la quota de l'empresa a la Seg. Social. Les despeses de personal es justifiquen amb la nòmina del treballador acompanyada dels corresponents RLC i RNT de la TGSS i el model 111 de l'IRPF."]
["(2) En el cas que el document justificatiu de la resta de despeses, no sigui una factura, sinó un altre document probatori equivalent, com un rebut o justificant (com per dietes o transport públic), indiqueu-lo en el camp d'observacions."]
["(3) En el cas que un justificant inclogui conceptes que no tenen a veure amb el projecte/activitat/servei per al qual s'ha atorgat la subvenció, aquí només s'ha d'indicar la part que realment s'ha dedicat al projecte."]
["(4) En aquesta columna s'ha d'indicar l'import total o parcial de la factura  que s'imputa a la subvenció rebuda de l'Ajuntament de Barcelona/IBE/ICUB/IMD. El total imputat, en aquesta columna, ha de ser igual  a l'import de la subvenció rebuda."]

{"sheet":"Relació d'ingressos 2","index":4,"n_rows":62,"n_cols":10,"rows_kept":62,"cut":false,"hidden":false,"merged":[[7,0,8,0],[7,1,8,1],[7,2,7,3],[7,6,8,9],[0,0,0,9],[2,2,2,3],[3,2,3,3],[4,2,4,3],[6,0,6,3],[19,6,19,9],[9,0,9,9],[10,6,10,9],[11,6,11,9],[12,6,12,9],[13,6,13,9],[14,6,14,9],[15,6,15,9],[16,0,16,3],[16,6,16,9],[17,0,17,9],[18,6,18,9],[30,0,30,3],[30,6,30,9],[20,6,20,9],[21,6,21,9],[22,6,22,9],[23,0,23,3],[23,6,23,9],[24,0,24,9],[25,6,25,9],[26,6,26,9],[27,6,27,9],[28,6,28,9],[29,6,29,9],[41,6,41,9],[31,0,31,9],[32,6,32,9],[33,6,33,9],[34,6,34,9],[35,6,35,9],[36,6,36,9],[37,6,37,9],[38,0,38,3],[38,6,38,9],[39,0,39,9],[40,6,40,9],[48,0,48,3],[48,6,48,9],[50,0,50,9],[51,0,52,9],[42,6,42,9],[43,6,43,9],[44,6,44,9],[45,6,45,9],[46,6,46,9],[47,0,47,3],[47,6,47,9]]}
["Detall de tots els ingressos obtinguts i aportacions del propi beneficiari per a l'execució de l'activitat subvencionada"]
[]
[null,"Nom de l'entitat beneficiària 2:        ",{"$f":"IF('Relació de despeses 2'!C3:D3<>\"\",'Relació de despeses 2'!C3:D3,\"\")","v":""},null,"Import total del projecte entitat no líder 2:",null,null,{"$f":"IF(+'Relació de despeses 2'!K3=\"\",\"\",+'Relació de despeses 2'!K3)","v":""},"euros"]
[null,"Codi de subvenció",{"$f":"IF('Relació de despeses 2'!C4:D4<>\"\",'Relació de despeses 2'!C4:D4,\"\")","v":""},null,"Import de la subvenció atorgada entitat no líder 2:",null,null,{"$f":"IF(+'Relació de despeses 2'!K4=\"\",\"\",+'Relació de despeses 2'!K4)","v":""},"euros"]
[null,"Nom del projecte subvencionat",{"$f":"IF('Relació de despeses 2'!C5:D5<>\"\",'Relació de despeses 2'!C5:D5,\"\")","v":""},null,"Període d'execució del projecte subvencionat:",null,null,{"$f":"IF(+'Relació de despeses 2'!K5=\"\",\"\",+'Relació de despeses 2'!K5)","v":""},"a",{"$f":"IF(+'Relació de despeses 2'!N5=\"\",\"\",+'Relació de despeses 2'!N5)","v":""}]
[]
["Ingressos del projecte/activitat/servei subvencionat"]
["núm. d'ordre (0)","Concepte de l'ingrés","Emissor de l'ingrés",null,"Data de cobrament\n(dd/mm/aaaa)","Import","Observacions"]
[null,null,"NIF","Nom","(2)","euros"]
["A. Subvencions de l'Ajuntament de Barcelona (1)"]
[{"$f":"IF(B11<>\"\",1,\"\")","v":""}]
[]
[]
[]
[{"$f":"IF(B15<>\"\",MAX($A$10:A14)+1,\"\")","v":""}]
[{"$f":"IF(B16<>\"\",MAX($A$10:A15)+1,\"\")","v":""}]
[null,null,null,null,"Subtotal A",{"$f":"SUM(F11:F16)","v":0}]
["B. Subvencions d'altres administracions"]
[{"$f":"IF(B19<>\"\",MAX($A$10:A18)+1,\"\")","v":""}]
[{"$f":"IF(B20<>\"\",MAX($A$10:A19)+1,\"\")","v":""}]
[{"$f":"IF(B21<>\"\",MAX($A$10:A20)+1,\"\")","v":""}]
[{"$f":"IF(B22<>\"\",MAX($A$10:A21)+1,\"\")","v":""}]
[{"$f":"IF(B23<>\"\",MAX($A$10:A22)+1,\"\")","v":""}]
[null,null,null,null,"Subtotal B",{"$f":"SUM(F19:F23)","v":0}]
["C. Aportacions d'ens privats"]
[{"$f":"IF(B26<>\"\",MAX($A$10:A25)+1,\"\")","v":""}]
[{"$f":"IF(B27<>\"\",MAX($A$10:A26)+1,\"\")","v":""}]
[{"$f":"IF(B28<>\"\",MAX($A$10:A27)+1,\"\")","v":""}]
[{"$f":"IF(B29<>\"\",MAX($A$10:A28)+1,\"\")","v":""}]
[{"$f":"IF(B30<>\"\",MAX($A$10:A29)+1,\"\")","v":""}]
[null,null,null,null,"Subtotal C",{"$f":"SUM(F26:F30)","v":0}]
["D. Recursos propis de l'entitat"]
[{"$f":"IF(B33<>\"\",MAX($A$10:A32)+1,\"\")","v":""}]
[{"$f":"IF(B34<>\"\",MAX($A$10:A33)+1,\"\")","v":""}]
[{"$f":"IF(B35<>\"\",MAX($A$10:A34)+1,\"\")","v":""}]
[{"$f":"IF(B36<>\"\",MAX($A$10:A35)+1,\"\")","v":""}]
[{"$f":"IF(B37<>\"\",MAX($A$10:A36)+1,\"\")","v":""}]
[{"$f":"IF(B38<>\"\",MAX($A$10:A37)+1,\"\")","v":""}]
[null,null,null,null,"Subtotal D",{"$f":"SUM(F33:F38)","v":0}]
["E. Altres ingressos"]
[{"$f":"IF(B41<>\"\",MAX($A$10:A40)+1,\"\")","v":""}]
[{"$f":"IF(B42<>\"\",MAX($A$10:A41)+1,\"\")","v":""}]
[{"$f":"IF(B43<>\"\",MAX($A$10:A42)+1,\"\")","v":""}]
[{"$f":"IF(B44<>\"\",MAX($A$10:A43)+1,\"\")","v":""}]
[{"$f":"IF(B45<>\"\",MAX($A$10:A44)+1,\"\")","v":""}]
[{"$f":"IF(B46<>\"\",MAX($A$10:A45)+1,\"\")","v":""}]
[{"$f":"IF(B47<>\"\",MAX($A$10:A46)+1,\"\")","v":""}]
[null,null,null,null,"Subtotal E",{"$f":"SUM(F41:F47)","v":0}]
["Total INGRESSOS",null,null,null,"TOTAL",{"$f":"+F17+F24+F31+F39+F48","v":0}]
[]
[{"$f":"'Relació de despeses 2'!A98:N98","v":"El Sr./Sra. (indicar el nom i cognoms de la persona representant que signa la justificació)  amb DNI/NIE (indicar el núm. DNI) en qualitat de persona física beneficiària o representant legal de la persona jurídica beneficiària (indicar nom i cognoms) amb NIF (indicar núm DNI)."}]
["DECLARA que els ingressos imputats al projecte/activitat/servei subvencionat han estat efectivament ingressats; que custodiarà la documentació suport que ho acredita; que  aquesta documentació es troba a disposició de l'Ajuntament de Barcelona o dels altres ens municipals en els arxius d'aquesta Entitat, durant un període mínim de 4 anys a comptar des de la data de presentació de la present justificació."]
[]
[]
[]
[]
[null,"Població i data: ",null,null,"Signatura del representant legal de l'entitat no líder 2"]
[]
[null,"Nota:"]
[null,"(0) El número d'ordre ha de ser correlatiu començant pel número 1"]
[null,"(1) Si per part de l'Ajuntament només s'ha rebut subvenció d'un sector o districte o institut, es poden esborrar la resta, que s'han indicat a mode d'exemple."]
[null,"(2) En cas que l'ingrés estigui pendent cobrament, indicar \"P. Cobrament\" "]

{"sheet":"Resum despeses-ingressos 2","index":5,"n_rows":44,"n_cols":11,"rows_kept":44,"cut":false,"hidden":false,"merged":[[2,0,2,1],[2,2,2,3],[2,5,2,6],[3,0,3,1],[3,2,3,3],[3,5,3,6],[4,0,4,1],[4,2,4,3],[5,0,5,3],[5,5,5,8],[6,0,6,1],[6,5,6,6],[7,0,7,1],[7,5,7,6],[8,0,8,1],[8,5,8,6],[9,0,9,1],[9,5,9,6],[10,0,10,1],[10,5,10,6],[11,0,11,1],[11,5,11,6],[12,0,12,1],[12,5,12,6],[30,0,31,10],[13,0,13,1],[13,5,13,6],[14,0,14,1],[15,0,15,1],[15,5,15,6],[16,0,16,1],[16,5,16,6],[16,7,16,8],[17,0,17,1],[20,0,20,8],[21,0,27,10],[29,0,29,10],[42,0,42,10],[43,0,43,10],[33,0,33,1],[37,0,37,10],[38,0,38,10],[39,0,39,10],[40,0,40,10],[41,0,41,10]]}
["Estat de les despeses realitzades i dels ingressos obtinguts per a l'execució de l'activitat subvencionada (*)"]
[]
["Nom de l'entitat beneficiària 2:         ",null,{"$f":"IF('Relació de despeses 2'!C3:D3<>\"\",'Relació de despeses 2'!C3:D3,\"\")","v":""},null,null,"Import total del projecte entitat no líder 2:",null,{"$f":"IF(+'Relació de despeses 2'!K3=\"\",\"\",+'Relació de despeses 2'!K3)","v":""},"euros"]
["Codi de subvenció:",null,{"$f":"IF('Relació de despeses 2'!C4:D4<>\"\",'Relació de despeses 2'!C4:D4,\"\")","v":""},null,null,"Import de la subvenció atorgada entitat no líder 2:",null,{"$f":"IF(+'Relació de despeses 2'!K4=\"\",\"\",+'Relació de despeses 2'!K4)","v":""},"euros"]
["Nom del projecte subvencionat:",null,{"$f":"IF('Relació de despeses 2'!C5:D5<>\"\",'Relació de despeses 2'!C5:D5,\"\")","v":""},null,null,"Període d'execució del projecte subvencionat:",null,null,{"$f":"IF(+'Relació de despeses 2'!K5=\"\",\"\",+'Relació de despeses 2'!K5)","v":""},"a",{"$f":"IF(+'Relació de despeses 2'!N5=\"\",\"\",+'Relació de despeses 2'!N5)","v":""}]
["Despeses del projecte/activitat/servei subvencionat",null,null,null,null,"Ingressos del projecte/activitat/servei subvencionat"]
["Concepte",null,"Previsió inicial de despeses (1)","Despeses realitzades\n(2)",null,"Concepte",null,"Previsió inicial d'ingressos (1)","Ingressos obtinguts\n(3)"]
["A. Recursos Humans. Despeses de personal (retribucions brutes i Seguretat Social del personal fix o eventual contractat)",null,null,{"$f":"'Relació de despeses 2'!K29","v":0},null,"A. Subvencions municipals",null,null,{"$f":"'Relació d''ingressos 2'!F17","v":0}]
["B. Despeses derivades de la difusió, promoció, publicitat del projecte i dels resultats",null,null,{"$f":"'Relació de despeses 2'!K38","v":0},null,"B. Subvencions d'altres administracions",null,null,{"$f":"'Relació d''ingressos 2'!F24","v":0}]
["C. Despeses de publicacions en format Open Access",null,null,{"$f":"'Relació de despeses 2'!K45","v":0},null,"C. Aportacions d'ens privats",null,null,{"$f":"'Relació d''ingressos 2'!F31","v":0}]
["D. Despeses de viatges, allotjament i manutenció",null,null,{"$f":"'Relació de despeses 2'!K52","v":0},null,"D. Recursos propis de l'entitat",null,null,{"$f":"'Relació d''ingressos 2'!F39","v":0}]
["E. Despeses derivades de la internacionalització de l'activitat",null,null,{"$f":"'Relació de despeses 2'!K59","v":0},null,"E. Altres ingressos",null,null,{"$f":"'Relació d''ingressos 2'!F48","v":0}]
["F. Despeses de l'adquisició d'equipament científic-tècnic (exclosa l'adquisició de software durant els darrers 3 mesos d'execució, exclosa l'adquisició de material inventariable: equips informàtics) No pot excedir del 30% de l'import concedit",null,null,{"$f":"'Relació de despeses 2'!K68","v":0},null,"Total Ingressos",null,{"$f":"SUM(H8:H12)","v":0},{"$f":"SUM(I8:I12)","v":0}]
["G. Despeses de l'adquisició de material fungible, subministres i productes similars",null,null,{"$f":"'Relació de despeses 2'!K79","v":0},null,"% finançament municipal (5)",null,{"$f":"IF(H8=\"\",\"- %\",+H8/H13)","v":"- %"},{"$f":"IF(I8=\"\",\"- %\",+I8/I13)","v":{"$error":"#DIV/0!"}}]
["H. Despeses d'auditoria",null,null,{"$f":"'Relació de despeses 2'!K85","v":0},null,null,null,"Previsió inicial","Real"]
["I. Despeses indirectes (màx 18% de l'ajut)",null,null,{"$f":"'Relació de despeses 2'!K90","v":0},null,"BALANÇ FINAL                                         Diferència Ingressos - Despeses ",null,{"$f":"+H13-C18","v":0},{"$f":"+I13-D18","v":0}]
["J. Altres despeses ( no incloses en els apartats anteriors)",null,null,{"$f":"'Relació de despeses 2'!K95","v":0},null,"Desviació de Despeses (4)",null,"Desviació d'ingressos (4)"]
["Total Despeses",null,{"$f":"SUM(C8:C17)","v":0},{"$f":"SUM(D8:D17)","v":0},null,"Import"," % (6)","Import","%"]
[null,null,null,null,null,{"$f":"+D18-C18","v":0},{"$f":"+F19/C18","v":{"$error":"#DIV/0!"}},{"$f":"+I13-H13","v":0},{"$f":"+H19/H13","v":{"$error":"#DIV/0!"}}]
[]
["Explicar els motius pels quals existeix una desviació entre la despesa prevista en la sol·licitud de subvenció i la finalment realitzada , així com entre els ingressos previstos i els obtinguts."]
[]
[]
[]
[]
[]
[]
[]
[]
[{"$f":"'Relació de despeses 2'!A98:N98","v":"El Sr./Sra. (indicar el nom i cognoms de la persona representant que signa la justificació)  amb DNI/NIE (indicar el núm. DNI) en qualitat de persona física beneficiària o representant legal de la persona jurídica beneficiària (indicar nom i cognoms) amb NIF (indicar núm DNI)."}]
["DECLARA que en relació al projecte/activitat/servei subvencionat s'han produït els ingressos i despeses que figuren en el present document, i que les desviacions respecte al pressupost inicial s'han produït per les motivacions a dalt esmentades, i perquè així consti, als efectes de justificar el compliment de l'objecte de la subvenció concedida, signo la present declaració responsable."]
[]
[]
["Població i data: ",null,null,null,null,"Signatura del representant legal de l'entitat no líder 2"]
[]
[]
["Notes:"]
["(*) Les columnes ombrejades en color groc s'aniran emplenant automàticament a partir de les dades introduïdes en els documents de Relació de despeses 2 i Relació d'ingressos 2. "]
["(1) Previsió inicial = S'han d'indicar la previsió inicial de despeses i d'ingressos segons allò que es va indicar al projecte original en el \"pla de viabilitat econòmica del projecte - Annex 4\"."]
["(2) Despeses reals = Cost real total del projecte subvencionat. Automàticament s'introduiran els subtotals de les despeses relacionades al full Relació de despeses 2."]
["(3) Ingresos reals = Total d'ingressos obtinguts per a la realització del projecte subvencionat. Automàticament s'introduiran els subtotals dels ingressos relacionats al full Relació d'ingressos 2."]
["(4) Desviació: En el cas de les despeses, la desviació és la diferència entre despeses reals i la previsió inicial de despeses; i en el cas d'ingressos, la diferència entre els ingressos reals i la previsió inicial d'ingressos. "]
["(5) % finançament municipal = percentatge que suposen les subvencions municipals (A) respecte del  total d'ingressos del projecte subvencionat."]
["(6) El % de la desviació final de despeses es calcula dividint l'import resultant de despeses reals - despeses previstes, entre el total de despeses previstes i de la mateixa manera els ingressos, En cas d'existir una desviació sempre s'ha de motivar."]

{"sheet":"Relació de despeses 3","index":6,"n_rows":110,"n_cols":13,"rows_kept":110,"cut":false,"hidden":false,"merged":[[107,0,107,13],[108,0,108,13],[109,0,109,13],[97,0,97,13],[98,0,98,13],[101,1,101,3],[101,5,101,13],[104,0,104,13],[106,0,106,13],[91,12,91,13],[92,12,92,13],[93,12,93,13],[94,0,94,7],[94,12,94,13],[95,0,95,5],[95,12,95,13],[86,12,86,13],[87,12,87,13],[88,12,88,13],[89,0,89,7],[89,12,89,13],[90,0,90,13],[81,12,81,13],[82,12,82,13],[83,12,83,13],[84,0,84,7],[84,12,84,13],[85,0,85,13],[72,12,72,13],[77,12,77,13],[78,0,78,7],[78,12,78,13],[79,0,79,13],[80,12,80,13],[67,0,67,7],[67,12,67,13],[68,0,68,13],[69,12,69,13],[70,12,70,13],[71,12,71,13],[59,0,59,13],[60,12,60,13],[61,12,61,13],[62,12,62,13],[63,12,63,13],[66,12,66,13],[54,12,54,13],[55,12,55,13],[56,12,56,13],[57,12,57,13],[58,0,58,7],[58,12,58,13],[49,12,49,13],[50,12,50,13],[51,0,51,7],[51,12,51,13],[52,0,52,13],[53,12,53,13],[44,0,44,7],[44,12,44,13],[45,0,45,13],[46,12,46,13],[47,12,47,13],[48,12,48,13],[38,0,38,13],[39,12,39,13],[40,12,40,13],[41,12,41,13],[42,12,42,13],[43,12,43,13],[33,12,33,13],[34,12,34,13],[35,12,35,13],[36,12,36,13],[37,0,37,7],[37,12,37,13],[28,0,28,7],[28,12,28,13],[29,0,29,13],[30,12,30,13],[31,12,31,13],[32,12,32,13],[20,12,20,13],[21,12,21,13],[22,12,22,13],[23,12,23,13],[24,12,24,13],[27,12,27,13],[13,12,13,13],[14,12,14,13],[15,12,15,13],[16,12,16,13],[18,12,18,13],[19,12,19,13],[9,0,9,13],[10,12,10,13],[11,12,11,13],[12,12,12,13],[4,0,4,1],[4,10,4,11],[6,0,6,4],[7,0,8,0],[7,1,8,1],[7,2,8,2],[7,3,7,4],[4,2,4,4],[0,0,0,13],[2,0,2,1],[2,10,2,11],[3,0,3,1],[3,10,3,11],[2,2,2,4],[3,2,3,4],[7,12,7,13],[8,12,8,13]]}
["Relació classificada de totes les despeses realitzades per a l'execució de l'activitat  subvencionada"]
[]
["Nom de l'entitat beneficiària 3:         ",null,null,null,null,null,null,null,null,"Import total del projecte entitat no líder 3:",null,null,"euros"]
["Codi de subvenció:",null,null,null,null,null,null,null,null,"Import de la subvenció atorgada entitat no líder 3:",null,null,"euros"]
["Nom del projecte subvencionat:",null,null,null,null,null,null,null,null,"Període d'execució del projecte subvencionat:",null,null,"a"]
[]
["Despeses del projecte/activitat/servei subvencionat (*)"]
["núm. d'ordre (0)","Número de document: justificants despesa personal (1), factura o rebut/tiquet(2)","Concepte de la factura / \ndocument probatori equivalent","Emissor de la factura",null,"Data d'emissió","Data de pagament de la factura","Import total de la factura","Percentatge d'iva deduït o el de després d'aplicar la Prorrata","Import després de deduïr l'IVA corresponent","Import imputable (dedicat) al projecte (3)","Import imputable a la subvenció municipal (4)","Observacions"]
[null,null,null,"NIF","Nom","dd/mm/aaaa","dd/mm/aaaa","euros","%","euros","euros","euros","(2)"]
["A. Recursos Humans. Despeses de personal (retribucions brutes i Seguretat Social del personal fix o eventual contractat)"]
[{"$f":"IF(B12<>\"\",1,\"\")","v":""},null,null,null,null,null,null,null,null,{"$f":"H11/(1+(I11))","v":0}]
[null,null,null,null,null,null,null,null,null,{"$f":"H12/(1+(I12))","v":0}]
[{"$f":"IF(B13<>\"\",MAX($A$11:A12)+1,\"\")","v":""},null,null,null,null,null,null,null,null,0]
[{"$f":"IF(B14<>\"\",MAX($A$11:A13)+1,\"\")","v":""},null,null,null,null,null,null,null,null,0]
[{"$f":"IF(B15<>\"\",MAX($A$11:A14)+1,\"\")","v":""},null,null,null,null,null,null,null,null,0]
[{"$f":"IF(B16<>\"\",MAX($A$11:A15)+1,\"\")","v":""},null,null,null,null,null,null,null,null,0]
[{"$f":"IF(B17<>\"\",MAX($A$11:A16)+1,\"\")","v":""},null,null,null,null,null,null,null,null,0]
[{"$f":"IF(B18<>\"\",MAX($A$11:A17)+1,\"\")","v":""},null,null,null,null,null,null,null,null,0]
[{"$f":"IF(B19<>\"\",MAX($A$11:A18)+1,\"\")","v":""},null,null,null,null,null,null,null,null,0]
[{"$f":"IF(B20<>\"\",MAX($A$11:A19)+1,\"\")","v":""},null,null,null,null,null,null,null,null,0]
[{"$f":"IF(B21<>\"\",MAX($A$11:A20)+1,\"\")","v":""},null,null,null,null,null,null,null,null,0]
[{"$f":"IF(B22<>\"\",MAX($A$11:A21)+1,\"\")","v":""},null,null,null,null,null,null,null,null,0]
[{"$f":"IF(B23<>\"\",MAX($A$11:A22)+1,\"\")","v":""},null,null,null,null,null,null,null,null,0]
[{"$f":"IF(B24<>\"\",MAX($A$11:A23)+1,\"\")","v":""},null,null,null,null,null,null,null,null,0]
[{"$f":"IF(B25<>\"\",MAX($A$11:A24)+1,\"\")","v":""},null,null,null,null,null,null,null,null,0]
[{"$f":"IF(B26<>\"\",MAX($A$11:A25)+1,\"\")","v":""},null,null,null,null,null,null,null,null,0]
[{"$f":"IF(B27<>\"\",MAX($A$11:A26)+1,\"\")","v":""},null,null,null,null,null,null,null,null,0]
[{"$f":"IF(B28<>\"\",MAX($A$11:A27)+1,\"\")","v":""},null,null,null,null,null,null,null,null,0]
[null,null,null,null,null,null,null,null,null,"Subtotal A",{"$f":"SUM(K11:K28)","v":0},{"$f":"SUM(L11:L28)","v":0}]
["B. Despeses derivades de la difusió, promoció, publicitat del projecte i dels resultats"]
[{"$f":"IF(B31<>\"\",MAX($A$11:A30)+1,\"\")","v":""},null,null,null,null,null,null,null,null,{"$f":"H31/(1+(I31))","v":0}]
[{"$f":"IF(B32<>\"\",MAX($A$30:A31)+1,\"\")","v":""},null,null,null,null,null,null,null,null,{"$f":"H32/(1+(I32))","v":0}]
[{"$f":"IF(B33<>\"\",MAX($A$30:A32)+1,\"\")","v":""},null,null,null,null,null,null,null,null,0]
[{"$f":"IF(B34<>\"\",MAX($A$30:A33)+1,\"\")","v":""},null,null,null,null,null,null,null,null,0]
[{"$f":"IF(B35<>\"\",MAX($A$30:A34)+1,\"\")","v":""},null,null,null,null,null,null,null,null,0]
[{"$f":"IF(B36<>\"\",MAX($A$30:A35)+1,\"\")","v":""},null,null,null,null,null,null,null,null,0]
[{"$f":"IF(B37<>\"\",MAX($A$30:A36)+1,\"\")","v":""},null,null,null,null,null,null,null,null,0]
[null,null,null,null,null,null,null,null,null,"Subtotal B",{"$f":"SUM(K31:K37)","v":0},{"$f":"SUM(L31:L37)","v":0}]
["C. Despeses de publicacions en format Open Access"]
[{"$f":"IF(B40<>\"\",MAX($A$11:A39)+1,\"\")","v":""},null,null,null,null,null,null,null,null,{"$f":"H40/(1+(I40))","v":0}]
[{"$f":"IF(B41<>\"\",MAX($A$30:A40)+1,\"\")","v":""},null,null,null,null,null,null,null,null,{"$f":"H41/(1+(I41))","v":0}]
[{"$f":"IF(B42<>\"\",MAX($A$30:A41)+1,\"\")","v":""},null,null,null,null,null,null,null,null,0]
[{"$f":"IF(B43<>\"\",MAX($A$30:A42)+1,\"\")","v":""},null,null,null,null,null,null,null,null,0]
[{"$f":"IF(B44<>\"\",MAX($A$30:A43)+1,\"\")","v":""},null,null,null,null,null,null,null,null,0]
[null,null,null,null,null,null,null,null,null,"Subtotal C",{"$f":"SUM(K40:K44)","v":0},{"$f":"SUM(L40:L44)","v":0}]
["D. Despeses de viatges, allotjament i manutenció (2)"]
[{"$f":"IF(B47<>\"\",MAX($A$11:A46)+1,\"\")","v":""},null,null,null,null,null,null,null,null,{"$f":"H47/(1+(I47))","v":0}]
[{"$f":"IF(B48<>\"\",MAX($A$30:A47)+1,\"\")","v":""},null,null,null,null,null,null,null,null,{"$f":"H48/(1+(I48))","v":0}]
[{"$f":"IF(B49<>\"\",MAX($A$30:A48)+1,\"\")","v":""},null,null,null,null,null,null,null,null,0]
[{"$f":"IF(B50<>\"\",MAX($A$30:A49)+1,\"\")","v":""},null,null,null,null,null,null,null,null,0]
[{"$f":"IF(B51<>\"\",MAX($A$30:A50)+1,\"\")","v":""},null,null,null,null,null,null,null,null,0]
[null,null,null,null,null,null,null,null,null,"Subtotal D",{"$f":"SUM(K47:K51)","v":0},{"$f":"SUM(L47:L51)","v":0}]
["E. Despeses derivades de la internacionalització de l'activitat"]
[{"$f":"IF(B54<>\"\",MAX($A$11:A53)+1,\"\")","v":""},null,null,null,null,null,null,null,null,{"$f":"H54/(1+(I54))","v":0}]
[{"$f":"IF(B55<>\"\",MAX($A$30:A54)+1,\"\")","v":""},null,null,null,null,null,null,null,null,{"$f":"H55/(1+(I55))","v":0}]
[{"$f":"IF(B56<>\"\",MAX($A$30:A55)+1,\"\")","v":""},null,null,null,null,null,null,null,null,0]
[{"$f":"IF(B57<>\"\",MAX($A$30:A56)+1,\"\")","v":""},null,null,null,null,null,null,null,null,0]
[{"$f":"IF(B58<>\"\",MAX($A$30:A57)+1,\"\")","v":""},null,null,null,null,null,null,null,null,0]
[null,null,null,null,null,null,null,null,null,"Subtotal E",{"$f":"SUM(K54:K58)","v":0},{"$f":"SUM(L54:L58)","v":0}]
["F. Despeses de l'adquisició d'equipament científic-tècnic (exclosa l'adquisició de software durant els darrers 3 mesos d'execució del projecte, exclosa l'adquisició de material inventariable: equips informàtics)                                                                                                                               Aquestes despeses no poden excedir del 30% de l'import concedit"]
[{"$f":"IF(B61<>\"\",MAX($A$11:A60)+1,\"\")","v":""},null,null,null,null,null,null,null,null,{"$f":"H61/(1+(I61))","v":0}]
[{"$f":"IF(B62<>\"\",MAX($A$30:A61)+1,\"\")","v":""},null,null,null,null,null,null,null,null,{"$f":"H62/(1+(I62))","v":0}]
[{"$f":"IF(B63<>\"\",MAX($A$30:A62)+1,\"\")","v":""},null,null,null,null,null,null,null,null,0]
[{"$f":"IF(B64<>\"\",MAX($A$30:A63)+1,\"\")","v":""},null,null,null,null,null,null,null,null,0]
[{"$f":"IF(B65<>\"\",MAX($A$30:A64)+1,\"\")","v":""},null,null,null,null,null,null,null,null,0]
[{"$f":"IF(B66<>\"\",MAX($A$30:A65)+1,\"\")","v":""},null,null,null,null,null,null,null,null,0]
[{"$f":"IF(B67<>\"\",MAX($A$30:A66)+1,\"\")","v":""},null,null,null,null,null,null,null,null,0]
[null,null,null,null,null,null,null,null,null,"Subtotal F",{"$f":"SUM(K61:K67)","v":0},{"$f":"SUM(L61:L67)","v":0}]
["G. Despeses de l'adquisició de material fungible, subministres (llum, aigua, gas)  i productes similars"]
[{"$f":"IF(B70<>\"\",MAX($A$11:A69)+1,\"\")","v":""},null,null,null,null,null,null,null,null,{"$f":"H70/(1+(I70))","v":0}]
[{"$f":"IF(B71<>\"\",MAX($A$30:A70)+1,\"\")","v":""},null,null,null,null,null,null,null,null,{"$f":"H71/(1+(I71))","v":0}]
[{"$f":"IF(B72<>\"\",MAX($A$30:A71)+1,\"\")","v":""},null,null,null,null,null,null,null,null,0]
[{"$f":"IF(B73<>\"\",MAX($A$30:A72)+1,\"\")","v":""},null,null,null,null,null,null,null,null,0]
[{"$f":"IF(B74<>\"\",MAX($A$30:A73)+1,\"\")","v":""},null,null,null,null,null,null,null,null,0]
[{"$f":"IF(B75<>\"\",MAX($A$30:A74)+1,\"\")","v":""},null,null,null,null,null,null,null,null,0]
[{"$f":"IF(B76<>\"\",MAX($A$30:A75)+1,\"\")","v":""},null,null,null,null,null,null,null,null,0]
[{"$f":"IF(B77<>\"\",MAX($A$30:A76)+1,\"\")","v":""},null,null,null,null,null,null,null,null,0]
[{"$f":"IF(B78<>\"\",MAX($A$30:A77)+1,\"\")","v":""},null,null,null,null,null,null,null,null,0]
[null,null,null,null,null,null,null,null,null,"Subtotal G",{"$f":"SUM(K70:K78)","v":0},{"$f":"SUM(L70:L78)","v":0}]
["H. Despeses d'auditoria"]
[{"$f":"IF(B81<>\"\",MAX($A$11:A80)+1,\"\")","v":""},null,null,null,null,null,null,null,null,{"$f":"H81/(1+(I81))","v":0}]
[{"$f":"IF(B82<>\"\",MAX($A$30:A81)+1,\"\")","v":""},null,null,null,null,null,null,null,null,{"$f":"H82/(1+(I82))","v":0}]
[{"$f":"IF(B83<>\"\",MAX($A$30:A82)+1,\"\")","v":""},null,null,null,null,null,null,null,null,0]
[{"$f":"IF(B84<>\"\",MAX($A$30:A83)+1,\"\")","v":""},null,null,null,null,null,null,null,null,0]
[null,null,null,null,null,null,null,null,null,"Subtotal H",{"$f":"SUM(K81:K84)","v":0},{"$f":"SUM(L81:L84)","v":0}]
["I. Despeses indirectes (màx 18% de l'ajut)"]
[{"$f":"IF(B87<>\"\",MAX($A$11:A86)+1,\"\")","v":""},null,null,null,null,null,null,null,null,{"$f":"H87/(1+(I87))","v":0}]
[{"$f":"IF(B88<>\"\",MAX($A$30:A87)+1,\"\")","v":""},null,null,null,null,null,null,null,null,{"$f":"H88/(1+(I88))","v":0}]
[{"$f":"IF(B89<>\"\",MAX($A$30:A88)+1,\"\")","v":""},null,null,null,null,null,null,null,null,0]
[null,null,null,null,null,null,null,null,null,"Subtotal I",{"$f":"SUM(K87:K89)","v":0},{"$f":"SUM(L87:L89)","v":0}]
["J. Altres despeses (no incloses en els apartats anteriors)"]
[{"$f":"IF(B92<>\"\",MAX($A$11:A91)+1,\"\")","v":""},null,null,null,null,null,null,null,null,{"$f":"H92/(1+(I92))","v":0}]
[{"$f":"IF(B93<>\"\",MAX($A$30:A92)+1,\"\")","v":""},null,null,null,null,null,null,null,null,{"$f":"H93/(1+(I93))","v":0}]
[{"$f":"IF(B94<>\"\",MAX($A$30:A93)+1,\"\")","v":""},null,null,null,null,null,null,null,null,0]
[null,null,null,null,null,null,null,null,null,"Subtotal J",{"$f":"SUM(K92:K94)","v":0},{"$f":"SUM(L92:L94)","v":0}]
["TOTAL DESPESES",null,null,null,null,null,null,"TOTAL",null,null,{"$f":"+K29+K38+K45+K52+K59+K68+K79+K85+K90+K95","v":0},{"$f":"+L29+L38+L45+L52+L59+L68+L79+L85+L90+L95","v":0}]
[]
["El Sr./Sra. (indicar el nom i cognoms de la persona representant que signa la justificació)  amb DNI/NIE (indicar el núm. DNI) en qualitat de persona física beneficiària o representant legal de la persona jurídica beneficiària (indicar nom i cognoms) amb NIF (indicar núm DNI)."]
["DECLARA que els rebuts/tiquets que s'han identificat com a tals en el camp d'observacions corresponen a despeses generades per l'esmentada activitat, que pels seus imports i característiques no han pogut ser objecte de factura; que els justificants relacionats imputats al projecte/activitat/servei subvencionat durant el seu període d'execució han estat efectivament pagats; que custodiarà la documentació suport que ho acredita; que aquesta documentació es troba a disposició de l'Ajuntament de Barcelona o dels altres ens municipals en els arxius d'aquesta Entitat, durant un període mínim de 4 anys a comptar des de la data de presentació de la present justificació."]
[]
[]
[null,"Població i data: ",null,null,null,"Signatura del representant legal de l'entitat no líder 3"]
[]
["Notes:"]
["(*) S'han de relacionar totes les despeses del projecte/activitat/servei subvencionat. En el cas que el nombre de files de cada concepte sigui insuficient podeu inserir línies dins del mateix concepte seleccionant una cel·la verda i fent clic sobre el botó d'inserir línia."]
["(0) El número d'ordre ha de ser correlatiu començant per 1"]
["(1) Respecte a les despeses de recursos humans, pot ser subvencionable el cost total salarial mensual, que correspon a la suma de la retribució bruta que apareix a la nòmina del treballador/a més la quota de l'empresa a la Seg. Social. Les despeses de personal es justifiquen amb la nòmina del treballador acompanyada dels corresponents RLC i RNT de la TGSS i el model 111 de l'IRPF."]
["(2) En el cas que el document justificatiu de la resta de despeses, no sigui una factura, sinó un altre document probatori equivalent, com un rebut o justificant (com per dietes o transport públic), indiqueu-lo en el camp d'observacions."]
["(3) En el cas que un justificant inclogui conceptes que no tenen a veure amb el projecte/activitat/servei per al qual s'ha atorgat la subvenció, aquí només s'ha d'indicar la part que realment s'ha dedicat al projecte."]
["(4) En aquesta columna s'ha d'indicar l'import total o parcial de la factura  que s'imputa a la subvenció rebuda de l'Ajuntament de Barcelona/IBE/ICUB/IMD. El total imputat, en aquesta columna, ha de ser igual  a l'import de la subvenció rebuda."]

{"sheet":"Relació d'ingressos 3","index":7,"n_rows":62,"n_cols":10,"rows_kept":62,"cut":false,"hidden":false,"merged":[[48,0,48,3],[48,6,48,9],[50,0,50,9],[51,0,52,9],[42,6,42,9],[43,6,43,9],[44,6,44,9],[45,6,45,9],[46,6,46,9],[47,0,47,3],[47,6,47,9],[41,6,41,9],[31,0,31,9],[32,6,32,9],[33,6,33,9],[34,6,34,9],[35,6,35,9],[36,6,36,9],[37,6,37,9],[38,0,38,3],[38,6,38,9],[39,0,39,9],[40,6,40,9],[30,0,30,3],[30,6,30,9],[20,6,20,9],[21,6,21,9],[22,6,22,9],[23,0,23,3],[23,6,23,9],[24,0,24,9],[25,6,25,9],[26,6,26,9],[27,6,27,9],[28,6,28,9],[29,6,29,9],[19,6,19,9],[9,0,9,9],[10,6,10,9],[11,6,11,9],[12,6,12,9],[13,6,13,9],[14,6,14,9],[15,6,15,9],[16,0,16,3],[16,6,16,9],[17,0,17,9],[18,6,18,9],[7,0,8,0],[7,1,8,1],[7,2,7,3],[7,6,8,9],[0,0,0,9],[2,2,2,3],[3,2,3,3],[4,2,4,3],[6,0,6,3]]}
["Detall de tots els ingressos obtinguts i aportacions del propi beneficiari per a l'execució de l'activitat subvencionada"]
[]
[null,"Nom de l'entitat beneficiària 3:        ",{"$f":"IF('Relació de despeses 3'!C3:D3<>\"\",'Relació de despeses 3'!C3:D3,\"\")","v":""},null,"Import total del projecte entitat no líder 3:",null,null,{"$f":"IF(+'Relació de despeses 3'!K3=\"\",\"\",+'Relació de despeses 3'!K3)","v":""},"euros"]
[null,"Codi de subvenció",{"$f":"IF('Relació de despeses 3'!C4:D4<>\"\",'Relació de despeses 3'!C4:D4,\"\")","v":""},null,"Import de la subvenció atorgada entitat no líder 3:",null,null,{"$f":"IF(+'Relació de despeses 3'!K4=\"\",\"\",+'Relació de despeses 3'!K4)","v":""},"euros"]
[null,"Nom del projecte subvencionat",{"$f":"IF('Relació de despeses 3'!C5:D5<>\"\",'Relació de despeses 3'!C5:D5,\"\")","v":""},null,"Període d'execució del projecte subvencionat:",null,null,{"$f":"IF(+'Relació de despeses 3'!K5=\"\",\"\",+'Relació de despeses 3'!K5)","v":""},"a",{"$f":"IF(+'Relació de despeses 3'!N5=\"\",\"\",+'Relació de despeses 3'!N5)","v":""}]
[]
["Ingressos del projecte/activitat/servei subvencionat"]
["núm. d'ordre (0)","Concepte de l'ingrés","Emissor de l'ingrés",null,"Data de cobrament\n(dd/mm/aaaa)","Import","Observacions"]
[null,null,"NIF","Nom","(2)","euros"]
["A. Subvencions de l'Ajuntament de Barcelona (1)"]
[{"$f":"IF(B11<>\"\",1,\"\")","v":""}]
[]
[]
[]
[{"$f":"IF(B15<>\"\",MAX($A$10:A14)+1,\"\")","v":""}]
[{"$f":"IF(B16<>\"\",MAX($A$10:A15)+1,\"\")","v":""}]
[null,null,null,null,"Subtotal A",{"$f":"SUM(F11:F16)","v":0}]
["B. Subvencions d'altres administracions"]
[{"$f":"IF(B19<>\"\",MAX($A$10:A18)+1,\"\")","v":""}]
[{"$f":"IF(B20<>\"\",MAX($A$10:A19)+1,\"\")","v":""}]
[{"$f":"IF(B21<>\"\",MAX($A$10:A20)+1,\"\")","v":""}]
[{"$f":"IF(B22<>\"\",MAX($A$10:A21)+1,\"\")","v":""}]
[{"$f":"IF(B23<>\"\",MAX($A$10:A22)+1,\"\")","v":""}]
[null,null,null,null,"Subtotal B",{"$f":"SUM(F19:F23)","v":0}]
["C. Aportacions d'ens privats"]
[{"$f":"IF(B26<>\"\",MAX($A$10:A25)+1,\"\")","v":""}]
[{"$f":"IF(B27<>\"\",MAX($A$10:A26)+1,\"\")","v":""}]
[{"$f":"IF(B28<>\"\",MAX($A$10:A27)+1,\"\")","v":""}]
[{"$f":"IF(B29<>\"\",MAX($A$10:A28)+1,\"\")","v":""}]
[{"$f":"IF(B30<>\"\",MAX($A$10:A29)+1,\"\")","v":""}]
[null,null,null,null,"Subtotal C",{"$f":"SUM(F26:F30)","v":0}]
["D. Recursos propis de l'entitat"]
[{"$f":"IF(B33<>\"\",MAX($A$10:A32)+1,\"\")","v":""}]
[{"$f":"IF(B34<>\"\",MAX($A$10:A33)+1,\"\")","v":""}]
[{"$f":"IF(B35<>\"\",MAX($A$10:A34)+1,\"\")","v":""}]
[{"$f":"IF(B36<>\"\",MAX($A$10:A35)+1,\"\")","v":""}]
[{"$f":"IF(B37<>\"\",MAX($A$10:A36)+1,\"\")","v":""}]
[{"$f":"IF(B38<>\"\",MAX($A$10:A37)+1,\"\")","v":""}]
[null,null,null,null,"Subtotal D",{"$f":"SUM(F33:F38)","v":0}]
["E. Altres ingressos"]
[{"$f":"IF(B41<>\"\",MAX($A$10:A40)+1,\"\")","v":""}]
[{"$f":"IF(B42<>\"\",MAX($A$10:A41)+1,\"\")","v":""}]
[{"$f":"IF(B43<>\"\",MAX($A$10:A42)+1,\"\")","v":""}]
[{"$f":"IF(B44<>\"\",MAX($A$10:A43)+1,\"\")","v":""}]
[{"$f":"IF(B45<>\"\",MAX($A$10:A44)+1,\"\")","v":""}]
[{"$f":"IF(B46<>\"\",MAX($A$10:A45)+1,\"\")","v":""}]
[{"$f":"IF(B47<>\"\",MAX($A$10:A46)+1,\"\")","v":""}]
[null,null,null,null,"Subtotal E",{"$f":"SUM(F41:F47)","v":0}]
["Total INGRESSOS",null,null,null,"TOTAL",{"$f":"+F17+F24+F31+F39+F48","v":0}]
[]
[{"$f":"'Relació de despeses 3'!A98:N98","v":"El Sr./Sra. (indicar el nom i cognoms de la persona representant que signa la justificació)  amb DNI/NIE (indicar el núm. DNI) en qualitat de persona física beneficiària o representant legal de la persona jurídica beneficiària (indicar nom i cognoms) amb NIF (indicar núm DNI)."}]
["DECLARA que els ingressos imputats al projecte/activitat/servei subvencionat han estat efectivament ingressats; que custodiarà la documentació suport que ho acredita; que  aquesta documentació es troba a disposició de l'Ajuntament de Barcelona o dels altres ens municipals en els arxius d'aquesta Entitat, durant un període mínim de 4 anys a comptar des de la data de presentació de la present justificació."]
[]
[]
[]
[]
[null,"Població i data: ",null,null,"Signatura del representant legal de l'entitat no líder 3"]
[]
[null,"Nota:"]
[null,"(0) El número d'ordre ha de ser correlatiu començant pel número 1"]
[null,"(1) Si per part de l'Ajuntament només s'ha rebut subvenció d'un sector o districte o institut, es poden esborrar la resta, que s'han indicat a mode d'exemple."]
[null,"(2) En cas que l'ingrés estigui pendent cobrament, indicar \"P. Cobrament\" "]

{"sheet":"Resum despeses-ingressos 3","index":8,"n_rows":44,"n_cols":11,"rows_kept":44,"cut":false,"hidden":false,"merged":[[42,0,42,10],[43,0,43,10],[33,0,33,1],[37,0,37,10],[38,0,38,10],[39,0,39,10],[40,0,40,10],[41,0,41,10],[30,0,31,10],[13,0,13,1],[13,5,13,6],[14,0,14,1],[15,0,15,1],[15,5,15,6],[16,0,16,1],[16,5,16,6],[16,7,16,8],[17,0,17,1],[20,0,20,8],[21,0,27,10],[29,0,29,10],[10,0,10,1],[10,5,10,6],[11,0,11,1],[11,5,11,6],[12,0,12,1],[12,5,12,6],[7,0,7,1],[7,5,7,6],[8,0,8,1],[8,5,8,6],[9,0,9,1],[9,5,9,6],[4,0,4,1],[4,2,4,3],[5,0,5,3],[5,5,5,8],[6,0,6,1],[6,5,6,6],[2,0,2,1],[2,2,2,3],[2,5,2,6],[3,0,3,1],[3,2,3,3],[3,5,3,6]]}
["Estat de les despeses realitzades i dels ingressos obtinguts per a l'execució de l'activitat subvencionada (*)"]
[]
["Nom de l'entitat beneficiària 3:         ",null,{"$f":"IF('Relació de despeses 3'!C3:D3<>\"\",'Relació de despeses 3'!C3:D3,\"\")","v":""},null,null,"Import total del projecte entitat no líder 3:",null,{"$f":"IF(+'Relació de despeses 3'!K3=\"\",\"\",+'Relació de despeses 3'!K3)","v":""},"euros"]
["Codi de subvenció:",null,{"$f":"IF('Relació de despeses 3'!C4:D4<>\"\",'Relació de despeses 3'!C4:D4,\"\")","v":""},null,null,"Import de la subvenció atorgada entitat no líder 3:",null,{"$f":"IF(+'Relació de despeses 3'!K4=\"\",\"\",+'Relació de despeses 3'!K4)","v":""},"euros"]
["Nom del projecte subvencionat:",null,{"$f":"IF('Relació de despeses 3'!C5:D5<>\"\",'Relació de despeses 3'!C5:D5,\"\")","v":""},null,null,"Període d'execució del projecte subvencionat:",null,null,{"$f":"IF(+'Relació de despeses 3'!K5=\"\",\"\",+'Relació de despeses 3'!K5)","v":""},"a",{"$f":"IF(+'Relació de despeses 3'!N5=\"\",\"\",+'Relació de despeses 3'!N5)","v":""}]
["Despeses del projecte/activitat/servei subvencionat",null,null,null,null,"Ingressos del projecte/activitat/servei subvencionat"]
["Concepte",null,"Previsió inicial de despeses (1)","Despeses realitzades\n(2)",null,"Concepte",null,"Previsió inicial d'ingressos (1)","Ingressos obtinguts\n(3)"]
["A. Recursos Humans. Despeses de personal (retribucions brutes i Seguretat Social del personal fix o eventual contractat)",null,null,{"$f":"'Relació de despeses 3'!K29","v":0},null,"A. Subvencions municipals",null,null,{"$f":"'Relació d''ingressos 3'!F17","v":0}]
["B. Despeses derivades de la difusió, promoció, publicitat del projecte i dels resultats",null,null,{"$f":"'Relació de despeses 3'!K38","v":0},null,"B. Subvencions d'altres administracions",null,null,{"$f":"'Relació d''ingressos 3'!F24","v":0}]
["C. Despeses de publicacions en format Open Access",null,null,{"$f":"'Relació de despeses 3'!K45","v":0},null,"C. Aportacions d'ens privats",null,null,{"$f":"'Relació d''ingressos 3'!F31","v":0}]
["D. Despeses de viatges, allotjament i manutenció",null,null,{"$f":"'Relació de despeses 3'!K52","v":0},null,"D. Recursos propis de l'entitat",null,null,{"$f":"'Relació d''ingressos 3'!F39","v":0}]
["E. Despeses derivades de la internacionalització de l'activitat",null,null,{"$f":"'Relació de despeses 3'!K59","v":0},null,"E. Altres ingressos",null,null,{"$f":"'Relació d''ingressos 3'!F48","v":0}]
["F. Despeses de l'adquisició d'equipament científic-tècnic (exclosa l'adquisició de software durant els darrers 3 mesos d'execució, exclosa l'adquisició de material inventariable: equips informàtics) No pot excedir del 30% de l'import concedit",null,null,{"$f":"'Relació de despeses 3'!K68","v":0},null,"Total Ingressos",null,{"$f":"SUM(H8:H12)","v":0},{"$f":"SUM(I8:I12)","v":0}]
["G. Despeses de l'adquisició de material fungible, subministres i productes similars",null,null,{"$f":"'Relació de despeses 3'!K79","v":0},null,"% finançament municipal (5)",null,{"$f":"IF(H8=\"\",\"- %\",+H8/H13)","v":"- %"},{"$f":"IF(I8=\"\",\"- %\",+I8/I13)","v":{"$error":"#DIV/0!"}}]
["H. Despeses d'auditoria",null,null,{"$f":"'Relació de despeses 3'!K85","v":0},null,null,null,"Previsió inicial","Real"]
["I. Despeses indirectes (màx 18% de l'ajut)",null,null,{"$f":"'Relació de despeses 3'!K90","v":0},null,"BALANÇ FINAL                                         Diferència Ingressos - Despeses ",null,{"$f":"+H13-C18","v":0},{"$f":"+I13-D18","v":0}]
["J. Altres despeses ( no incloses en els apartats anteriors)",null,null,{"$f":"'Relació de despeses 3'!K95","v":0},null,"Desviació de Despeses (4)",null,"Desviació d'ingressos (4)"]
["Total Despeses",null,{"$f":"SUM(C8:C17)","v":0},{"$f":"SUM(D8:D17)","v":0},null,"Import"," % (6)","Import","%"]
[null,null,null,null,null,{"$f":"+D18-C18","v":0},{"$f":"+F19/C18","v":{"$error":"#DIV/0!"}},{"$f":"+I13-H13","v":0},{"$f":"+H19/H13","v":{"$error":"#DIV/0!"}}]
[]
["Explicar els motius pels quals existeix una desviació entre la despesa prevista en la sol·licitud de subvenció i la finalment realitzada , així com entre els ingressos previstos i els obtinguts."]
[]
[]
[]
[]
[]
[]
[]
[]
[{"$f":"'Relació de despeses 3'!A98:N98","v":"El Sr./Sra. (indicar el nom i cognoms de la persona representant que signa la justificació)  amb DNI/NIE (indicar el núm. DNI) en qualitat de persona física beneficiària o representant legal de la persona jurídica beneficiària (indicar nom i cognoms) amb NIF (indicar núm DNI)."}]
["DECLARA que en relació al projecte/activitat/servei subvencionat s'han produït els ingressos i despeses que figuren en el present document, i que les desviacions respecte al pressupost inicial s'han produït per les motivacions a dalt esmentades, i perquè així consti, als efectes de justificar el compliment de l'objecte de la subvenció concedida, signo la present declaració responsable."]
[]
[]
["Població i data: ",null,null,null,null,"Signatura del representant legal de l'entitat no líder 3"]
[]
[]
["Notes:"]
["(*) Les columnes ombrejades en color groc s'aniran emplenant automàticament a partir de les dades introduïdes en els documents de Relació de despeses 3 i Relació d'ingressos 3. "]
["(1) Previsió inicial = S'ha d'indicar la previsió inicial de despeses i d'ingressos segons allò que es va indicar al projecte original en el \"pla de viabilitat econòmica del projecte - Annex 4\". "]
["(2) Despeses reals = Cost real total del projecte subvencionat. Automàticament s'introduiran els subtotals de les despeses relacionades al full Relació de despeses 3."]
["(3) Ingresos reals = Total d'ingressos obtinguts per a la realització del projecte subvencionat. Automàticament s'introduiran els subtotals dels ingressos relacionats al full Relació d'ingressos 3."]
["(4) Desviació: En el cas de les despeses, la desviació és la diferència entre despeses reals i la previsió inicial de despeses; i en el cas d'ingressos, la diferència entre els ingressos reals i la previsió inicial d'ingressos. "]
["(5) % finançament municipal = percentatge que suposen les subvencions municipals (A) respecte del  total d'ingressos del projecte subvencionat."]
["(6) El % de la desviació final de despeses es calcula dividint l'import resultant de despeses reals - despeses previstes, entre el total de despeses previstes i de la mateixa manera els ingressos, En cas d'existir una desviació sempre s'ha de motivar."]

{"sheet":"Resum despeses-ingressos Total","index":9,"n_rows":48,"n_cols":17,"rows_kept":48,"cut":false,"hidden":false,"merged":[[46,0,46,10],[47,0,47,10],[41,0,41,10],[42,0,42,10],[43,0,43,10],[44,0,44,10],[45,0,45,10],[24,0,24,8],[25,0,31,10],[33,0,33,10],[34,0,35,10],[37,0,37,1],[9,11,9,12],[9,9,9,10],[9,13,9,14],[9,15,9,16],[9,2,9,3],[9,4,9,5],[9,6,9,7],[2,0,2,1],[2,2,2,3],[3,0,3,1],[3,2,3,3],[6,0,6,1],[6,2,6,3],[21,0,21,1],[20,11,20,12],[20,0,20,1],[16,0,16,1],[17,9,17,10],[17,0,17,1],[18,0,18,1],[19,9,19,10],[19,0,19,1],[20,9,20,10],[16,9,16,10],[15,0,15,1],[15,9,15,10],[10,0,10,1],[10,9,10,10],[11,0,11,1],[11,9,11,10],[12,0,12,1],[12,9,12,10],[13,0,13,1],[13,9,13,10],[14,0,14,1],[14,9,14,10],[7,9,7,12],[8,0,8,1],[8,9,8,10],[4,0,4,1],[4,2,4,3],[4,9,4,10],[5,0,5,1],[5,2,5,3],[5,9,5,10],[7,0,7,3]]}
["Estat de les despeses realitzades i dels ingressos obtinguts per a l'execució de l'activitat subvencionada (*)"]
[]
["Nom de l'entitat beneficiària 1:         ",null,{"$f":"IF('Relació de despeses 1'!C3:D3<>\"\",'Relació de despeses 1'!C3:D3,\"\")","v":""}]
["Nom de l'entitat beneficiària 2:         ",null,{"$f":"IF('Relació de despeses 2'!C3:D3<>\"\",'Relació de despeses 2'!C3:D3,\"\")","v":""}]
["Nom de l'entitat beneficiària 3:         ",null,{"$f":"IF('Relació de despeses 3'!C3:D3<>\"\",'Relació de despeses 3'!C3:D3,\"\")","v":""},null,null,null,null,null,null,"Import total del projecte:",null,{"$f":"SUM('Relació de despeses 1'!K3:L3,'Relació de despeses 2'!K3:L3,'Relació de despeses 3'!K3:L3,)","v":0},"euros"]
["Codi de subvenció:",null,{"$f":"IF('Relació de despeses 1'!C4:D4<>\"\",'Relació de despeses 1'!C4:D4,\"\")","v":""},null,null,null,null,null,null,"Import total de la subvenció atorgada:",null,{"$f":"SUM('Relació de despeses 1'!K4:L4,'Relació de despeses 2'!K4:L4,'Relació de despeses 3'!K4:L4,)","v":0},"euros"]
["Nom del projecte subvencionat:",null,{"$f":"IF('Relació de despeses 1'!C5:D5<>\"\",'Relació de despeses 1'!C5:D5,\"\")","v":""},null,null,null,null,null,null,"Període d'execució del projecte subvencionat:",null,null,{"$f":"IF(+'Relació de despeses 1'!K5=\"\",\"\",+'Relació de despeses 1'!K5)","v":""},"a",{"$f":"IF(+'Relació de despeses 1'!N5=\"\",\"\",+'Relació de despeses 1'!N5)","v":""}]
["Despeses del projecte/activitat/servei subvencionat",null,null,null,null,null,null,null,null,"Ingressos del projecte/activitat/servei subvencionat"]
["Concepte",null,"Previsió inicial de despeses (1)","Despeses realitzades\n(2)","Previsió inicial de despeses (1)","Despeses realitzades\n(2)","Previsió inicial de despeses (1)","Despeses realitzades\n(2)",null,"Concepte",null,"Previsió inicial (1)","Ingressos obtinguts\n(3)","Previsió inicial (1)","Ingressos obtinguts\n(3)","Previsió inicial (1)","Ingressos obtinguts\n(3)"]
[null,null,"Entitat 1",null,"Entitat 2",null,"Entitat 3",null,null,null,null,"Entitat 1",null,"Entitat 2",null,"Entitat 3"]
["A. Recursos Humans. Despeses de personal (retribucions brutes i Seguretat Social del personal fix o eventual contractat)",null,{"$f":"'Resum despeses-ingressos 1'!C8","v":0},{"$f":"'Relació de despeses 1'!K29","v":0},{"$f":"'Resum despeses-ingressos 2'!C8","v":0},{"$f":"'Relació de despeses 2'!K29","v":0},{"$f":"'Resum despeses-ingressos 3'!C8","v":0},{"$f":"'Relació de despeses 3'!K29","v":0},null,"A. Subvencions municipals",null,{"$f":"'Resum despeses-ingressos 1'!H8","v":0},{"$f":"'Relació d''ingressos 1 '!F17","v":0},{"$f":"'Resum despeses-ingressos 2'!H8","v":0},{"$f":"'Relació d''ingressos 2'!F17","v":0},{"$f":"'Resum despeses-ingressos 3'!H8","v":0},{"$f":"'Relació d''ingressos 3'!F17","v":0}]
["B. Despeses derivades de la difusió, promoció, publicitat del projecte i dels resultats",null,{"$f":"'Resum despeses-ingressos 1'!C9","v":0},{"$f":"'Relació de despeses 1'!K38","v":0},{"$f":"'Resum despeses-ingressos 2'!C9","v":0},{"$f":"'Relació de despeses 1'!K38","v":0},{"$f":"'Resum despeses-ingressos 3'!C9","v":0},{"$f":"'Relació de despeses 3'!K38","v":0},null,"B. Subvencions d'altres administracions",null,{"$f":"'Resum despeses-ingressos 1'!H9","v":0},{"$f":"'Relació d''ingressos 1 '!F24","v":0},{"$f":"'Resum despeses-ingressos 2'!H9","v":0},{"$f":"'Relació d''ingressos 2'!F24","v":0},{"$f":"'Resum despeses-ingressos 3'!H9","v":0},{"$f":"'Relació d''ingressos 3'!F24","v":0}]
["C. Despeses de publicacions en format Open Access",null,{"$f":"'Resum despeses-ingressos 1'!C10","v":0},{"$f":"'Relació de despeses 1'!K45","v":0},{"$f":"'Resum despeses-ingressos 2'!C10","v":0},{"$f":"'Relació de despeses 2'!K45","v":0},{"$f":"'Resum despeses-ingressos 3'!C10","v":0},{"$f":"'Relació de despeses 3'!K45","v":0},null,"C. Aportacions d'ens privats",null,{"$f":"'Resum despeses-ingressos 1'!H10","v":0},{"$f":"'Relació d''ingressos 1 '!F31","v":0},{"$f":"'Resum despeses-ingressos 2'!H10","v":0},{"$f":"'Relació d''ingressos 2'!F31","v":0},{"$f":"'Resum despeses-ingressos 3'!H10","v":0},{"$f":"'Relació d''ingressos 3'!F31","v":0}]
["D. Despeses de viatges, allotjament i manutenció",null,{"$f":"'Resum despeses-ingressos 1'!C11","v":0},{"$f":"'Relació de despeses 1'!K52","v":0},{"$f":"'Resum despeses-ingressos 2'!C11","v":0},{"$f":"'Relació de despeses 2'!K52","v":0},{"$f":"'Resum despeses-ingressos 3'!C11","v":0},{"$f":"'Relació de despeses 3'!K52","v":0},null,"D. Recursos propis de l'entitat",null,{"$f":"'Resum despeses-ingressos 1'!H11","v":0},{"$f":"'Relació d''ingressos 1 '!F39","v":0},{"$f":"'Resum despeses-ingressos 2'!H11","v":0},{"$f":"'Relació d''ingressos 2'!F39","v":0},{"$f":"'Resum despeses-ingressos 3'!H11","v":0},{"$f":"'Relació d''ingressos 3'!F39","v":0}]
["E. Despeses derivades de la internacionalització de l'activitat",null,{"$f":"'Resum despeses-ingressos 1'!C12","v":0},{"$f":"'Relació de despeses 1'!K59","v":0},{"$f":"'Resum despeses-ingressos 2'!C12","v":0},{"$f":"'Relació de despeses 2'!K59","v":0},{"$f":"'Resum despeses-ingressos 3'!C12","v":0},{"$f":"'Relació de despeses 3'!K59","v":0},null,"E. Altres ingressos",null,{"$f":"'Resum despeses-ingressos 1'!H12","v":0},{"$f":"'Relació d''ingressos 1 '!F48","v":0},{"$f":"'Resum despeses-ingressos 2'!H12","v":0},{"$f":"'Relació d''ingressos 2'!F48","v":0},{"$f":"'Resum despeses-ingressos 3'!H12","v":0},{"$f":"'Relació d''ingressos 3'!F48","v":0}]
["F. Despeses de l'adquisició d'equipament científic-tècnic (exclosa l'adquisició de software durant els darrers 3 mesos d'execució, exclosa l'adquisició de material inventariable: equips informàtics) No pot excedir del 30% de l'import concedit",null,{"$f":"'Resum despeses-ingressos 1'!C13","v":0},{"$f":"'Relació de despeses 1'!K68","v":0},{"$f":"'Resum despeses-ingressos 2'!C13","v":0},{"$f":"'Relació de despeses 2'!K68","v":0},{"$f":"'Resum despeses-ingressos 3'!C13","v":0},{"$f":"'Relació de despeses 3'!K68","v":0},null,"Subtotals Ingressos",null,{"$f":"SUM(L10:L15)","v":0},0,0,0,0,0]
["G. Despeses de l'adquisició de material fungible, subministres i productes similars",null,{"$f":"'Resum despeses-ingressos 1'!C14","v":0},{"$f":"'Relació de despeses 1'!K79","v":0},{"$f":"'Resum despeses-ingressos 2'!C14","v":0},{"$f":"'Relació de despeses 2'!K79","v":0},{"$f":"'Resum despeses-ingressos 3'!C14","v":0},{"$f":"'Relació de despeses 3'!K79","v":0},null,"Total Ingressos",null,null,null,null,null,{"$f":"SUM(L16,N16,P16)","v":0},{"$f":"SUM(M16,O16,Q16)","v":0}]
["H. Despeses d'auditoria",null,{"$f":"'Resum despeses-ingressos 1'!C15","v":0},{"$f":"'Relació de despeses 1'!K85","v":0},{"$f":"'Resum despeses-ingressos 2'!C15","v":0},{"$f":"'Relació de despeses 2'!K85","v":0},{"$f":"'Resum despeses-ingressos 3'!C15","v":0},{"$f":"'Relació de despeses 3'!K85","v":0},null,"% finançament municipal (5)",null,{"$f":"IF(L11=\"\",\"- %\",+L11/L16)","v":{"$error":"#DIV/0!"}},{"$error":"#DIV/0!"},{"$error":"#DIV/0!"},{"$error":"#DIV/0!"},{"$error":"#DIV/0!"},{"$error":"#DIV/0!"}]
["I. Despeses indirectes (màx 18% de l'ajut)",null,{"$f":"'Resum despeses-ingressos 1'!C16","v":0},{"$f":"'Relació de despeses 1'!K90","v":0},{"$f":"'Resum despeses-ingressos 2'!C16","v":0},{"$f":"'Relació de despeses 2'!K90","v":0},{"$f":"'Resum despeses-ingressos 3'!C16","v":0},{"$f":"'Relació de despeses 3'!K90","v":0},null,null,null,"Previsió inicial","Real"]
["J. Altres despeses ( no incloses en els apartats anteriors)",null,{"$f":"'Resum despeses-ingressos 1'!C17","v":0},{"$f":"'Relació de despeses 1'!K95","v":0},{"$f":"'Resum despeses-ingressos 2'!C17","v":0},{"$f":"'Relació de despeses 2'!K95","v":0},{"$f":"'Resum despeses-ingressos 3'!C17","v":0},{"$f":"'Relació de despeses 3'!K95","v":0},null,"BALANÇ FINAL                                         Diferència Ingressos - Despeses ",null,{"$f":"+P17-G22","v":0},{"$f":"+Q17-H22","v":0}]
["Subtotals Despeses",null,{"$f":"SUM(C11:C20)","v":0},0,0,0,0,0,null,"Desviació de Despeses (4)",null,"Desviació d'ingressos (4)"]
["Total Despeses",null,null,null,null,null,{"$f":"SUM(C21,E21,G21)","v":0},{"$f":"SUM(D21, F21,H21)","v":0},null,"Import"," % (6)","Import","%"]
[null,null,null,null,null,null,null,null,null,{"$f":"+H22-G22","v":0},{"$f":"+J23/H22","v":{"$error":"#DIV/0!"}},{"$f":"+Q17-P17","v":0},{"$f":"+L23/Q17","v":{"$error":"#DIV/0!"}}]
[]
["Explicar els motius pels quals existeix una desviació entre la despesa prevista en la sol·licitud de subvenció i la finalment realitzada , així com entre els ingressos previstos i els obtinguts."]
[]
[]
[]
[]
[]
[]
[]
[]
[{"$f":"'Relació de despeses 1'!A98:N98","v":"El Sr./Sra. (indicar el nom i cognoms de la persona representant que signa la justificació)  amb DNI/NIE (indicar el núm. DNI) en qualitat de persona física beneficiària o representant legal de la persona jurídica beneficiària (indicar nom i cognoms) amb NIF (indicar núm DNI)."}]
["DECLARA que en relació al projecte/activitat/servei subvencionat s'han produït els ingressos i despeses que figuren en el present document, i que les desviacions respecte al pressupost inicial s'han produït per les motivacions a dalt esmentades, i perquè així consti, als efectes de justificar el compliment de l'objecte de la subvenció concedida, signo la present declaració responsable."]
[]
[]
["Població i data: ",null,null,null,null,"Signatura del representant legal de l'entitat líder"]
[]
[]
["Notes:"]
["(*) Les columnes ombrejades en color groc s'aniran emplenant automàticament a partir de les dades introduïdes en els documents de Relació de despeses 1, 2 i 3 i Relació d'ingressos 1, 2 i 3."]
["(1) Previsió inicial = S'ha d'indicar la previsió inicial de despeses i d'ingressos segons allò que es va indicar al projecte original en el \"pla de viabilitat econòmica del projecte - Annex 4\"."]
["(2) Despeses reals = Cost real total del projecte subvencionat. Automàticament s'introduiran els subtotals de les despeses relacionades al full Relació de despeses 1, 2 i 3.."]
["(3) Ingresos reals = Total d'ingressos obtinguts per a la realització del projecte subvencionat. Automàticament s'introduiran els subtotals dels ingressos relacionats al full Relació d'ingressos 1, 2 i 3."]
["(4) Desviació: En el cas de les despeses, la desviació és la diferència entre despeses reals i la previsió inicial de despeses; i en el cas d'ingressos, la diferència entre els ingressos reals i la previsió inicial d'ingressos. "]
["(5) % finançament municipal = percentatge que suposen les subvencions municipals (A) respecte del  total d'ingressos del projecte subvencionat."]
["(6) El % de la desviació final de despeses es calcula dividint l'import resultant de despeses reals - despeses previstes, entre el total de despeses previstes i de la mateixa manera els ingressos, En cas d'existir una desviació sempre s'ha de motivar."]